Cogmind - Beta 9.2 @@@ ROGUE MODE // 2019.11.26 @ 20:37:27 Player: Valguris Result: Destroyed by H-88 Terminator with Heavy Machine Gun Performance ------------- Evolutions (8) 4000 Regions Visited (35) 7000 Robots Destroyed (595) 2975 Value Destroyed (27639) 27639 Prototype IDs (236) 4720 Alien Tech Used (4) 800 Bonus (21532) 21532 TOTAL SCORE: 68666 Bonus ------- Triggered High Security 1000 High Alert Combat Kills 9172 Follower Combat Kills 3558 Entered Garrisons 200 Used RIF Installer 500 Network Hubs Disabled 800 Met Data Miner 300 Used Data Conduit 3000 Exposed GOLEM Chamber 500 Met Zhirov 300 Built Enhanced Grunts 300 Met R17 at Cetus 500 Pursued by Intercept 3500 Met Sigix 2000 Friendly Fire -4098 Cogmind --------- Core Integrity 0/1450 Matter 263/300 Energy 74/100 System Corruption 43% Temperature Cool (0) Movement Core (50) Location -2/Section 7 Parts ------- > --- POWER (2) -------- (None) > --- PROPULSION (7) --- (None) > --- UTILITY (13) ----- Relay Coupler [NC] (19) > --- WEAPON (2) ------- (None) > --- INVENTORY (4) ---- Molecular Deconstructor Sigix Containment Pod Peak State ------------ > --- POWER ------------ Compact Particle Reactor Compact Particle Reactor > --- PROPULSION ------- Cooled Antigrav System Cooled Antigrav System Cooled Antigrav System Cooled Antigrav System Cooled Antigrav System Cooled Antigrav System Cooled Antigrav System > --- UTILITY ---------- Large Storage Unit Large Storage Unit Large Storage Unit Large Storage Unit High-capacity Storage Unit Assembled Biocell Array Makeshift Sensor Array Experimental Signal Interpreter Experimental Targeting Computer Experimental Weapon Shielding Centrium Medium Armor Plating Assault Drone Bay > --- WEAPON ----------- EMDS > --- INVENTORY -------- Compact Particle Reactor Improved Quantum Reactor Cooled Antigrav System Cooled Antigrav System Experimental Cooling System Zionite Biocell Experimental Matter Compressor Long-range Sensor Array Quantum Capacitor Damper Plating Experimental Focal Shield Relay Coupler [NC] Relay Coupler [NC] Transdimensional Reconstructor Enhanced Nova Cannon Linked Autogun Linked Autogun Micro-nuke Launcher Experimental Remote Datajack Improved Plasma Cutter AD-0RF's Magmablaster Molecular Deconstructor Self-destruct Interrupter [Rating: 182] Favorites ----------- Power Antimatter Reactor Engine Improved Deuterium Engine Power Core Light Nuclear Core Reactor Antimatter Reactor Propulsion Armored Wheel Treads Armored Treads Leg Aluminum Leg Wheel Armored Wheel Hover Unit Cooled Antigrav System Flight Unit Flight Unit Utility High-capacity Storage Unit Device Long-range Sensor Array Storage High-capacity Storage Unit Processor Improved Signal Interpreter Hackware Relay Coupler [Sentry] Protection Improved Medium Armor Plating Artifact Matter Drive Weapon Cooled Particle Cannon Energy Gun Gatling Laser Energy Cannon Cooled Particle Cannon Ballistic Gun Linked Autogun Ballistic Cannon Enhanced Gauss Cannon Launcher Long-range Missile Launcher Special Weapon Remote Datajack Slashing Weapon Great Axe Piercing Weapon Spear Special Melee Weapon Improved Datajack Build | -11 -10 -10 -10 -9 -8 -8 -7 -7 -7 -7 -7 -7 -6 -6 -6 -6 -6 -6 -5 -5 -5 -5 -5 -5 -5 -4 -4 -4 -4 -4 -4 -3 -2 -2 -2 ------- Run | Scr Mat Min Exi Min Mat Gar Fac Was Fac Low Low Dat Pro Fac Low Low Zio Dee Pro Fac Was Fac Upp Upp Zhi Pro Fac Ext Cet Arc Hub Res Res Qua Sec Slots Evolved 16 | . . . . . 4 . 2 . . . . . . 2 . . . . . 2 . . . . . . 2 . . . . 2 2 . . Power 1 | . . . . . . . . . . . . . . 1 . . . . . . . . . . . . . . . . . . . . . Propulsion 5 | . . . . . 1 . . . . . . . . . . . . . . 1 . . . . . . 2 . . . . 1 . . . Utility 10 | . . . . . 3 . 2 . . . . . . 1 . . . . . 1 . . . . . . . . . . . 1 2 . . Weapon . | . . . . . . . . . . . . . . . . . . . . . . . . . . . . . . . . . . . . Parts Attached 722 | 6 9 12 3 14 28 15 43 18 13 8 20 6 36 47 3 5 26 20 . 5 3 43 1 20 3 21 36 40 9 3 31 72 43 58 2 Power 24 | 1 . 2 . 3 3 . 3 1 . . . . 1 1 . . 1 . . . . . . . . . . . . . 2 5 . 1 . Engine 11 | 1 . 1 . 3 2 . 2 . . . . . . . . . 1 . . . . . . . . . . . . . . . . 1 . Core 3 | . . 1 . . 1 . 1 . . . . . . . . . . . . . . . . . . . . . . . . . . . . Reactor 10 | . . . . . . . . 1 . . . . 1 1 . . . . . . . . . . . . . . . . 2 5 . . . Propulsion 85 | 2 . 3 . 3 7 1 7 2 . . . . 6 8 . . 1 . . 1 . 3 . . . 1 11 1 . . 1 8 6 12 1 Treads 23 | 2 . 1 . 1 3 1 3 2 . . . . 3 3 . . . . . . . 1 . . . . . . . . . . . 3 . Leg 5 | . . 1 . . 3 . . . . . . . . . . . . . . . . . . . . . 1 . . . . . . . . Wheel 23 | . . 1 . 1 1 . 3 . . . . . 3 5 . . 1 . . 1 . 2 . . . 1 3 . . . . . . 1 . Hover 33 | . . . . . . . 1 . . . . . . . . . . . . . . . . . . . 7 1 . . 1 8 6 8 1 Flight 1 | . . . . 1 . . . . . . . . . . . . . . . . . . . . . . . . . . . . . . . Utility 288 | 1 5 . 3 2 5 3 11 6 6 6 12 1 13 20 1 3 14 10 . 4 1 29 1 12 1 8 15 8 7 3 13 29 18 17 . Device 136 | . 1 . 2 . 2 1 6 2 2 2 7 . 7 8 . 1 9 3 . 1 1 12 1 7 . 6 6 5 4 2 12 11 8 7 . Storage 33 | 1 4 . 1 2 2 1 2 1 1 1 . . . 6 . . 1 1 . . . . . . . . . . . . . 2 4 3 . Processor 8 | . . . . . . . 1 . . 1 . . . . 1 . . 1 . . . 1 . . . . . 1 . . . 1 . 1 . Hackware 12 | . . . . . . . 2 1 3 . . . 1 . . . . . . 1 . 2 . . . . . . . . . . . 2 . Protection 98 | . . . . . 1 1 . 2 . 2 5 1 5 6 . 2 4 5 . 2 . 14 . 5 1 2 9 2 3 1 1 15 6 3 . Artifact 1 | . . . . . . . . . . . . . . . . . . . . . . . . . . . . . . . . . . 1 . Weapon 325 | 2 4 7 . 6 13 11 22 9 7 2 8 5 16 18 2 2 10 10 . . 2 11 . 8 2 12 10 31 2 . 15 30 19 28 1 Energy Gun 20 | 1 1 3 . . 4 . . . . . . . 2 4 . . . 5 . . . . . . . . . . . . . . . . . Energy Cannon 150 | . . . . . 6 6 13 8 2 1 3 2 6 5 1 . 3 1 . . . 4 . 8 1 9 4 19 1 . 8 19 10 10 . Ballistic Gun 34 | 1 1 1 . 3 2 . . . . . . . . 4 . . 5 2 . . . . . . . . 1 . . . 2 4 3 5 . Ballistic Cannon 10 | . . . . . . . 1 . . . . 1 2 2 . . 1 1 . . 1 1 . . . . . . . . . . . . . Launcher 38 | . 2 3 . 3 1 5 4 . . 1 3 1 4 . 1 1 . 1 . . . . . . . 3 . 2 . . . 1 1 1 . Special Weapon 57 | . . . . . . . . 1 1 . . 1 1 1 . . 1 . . . 1 6 . . 1 . 5 10 1 . 5 6 5 10 1 Impact Weapon . | . . . . . . . . . . . . . . . . . . . . . . . . . . . . . . . . . . . . Slashing Weapon 6 | . . . . . . . 1 . 2 . . . . . . 1 . . . . . . . . . . . . . . . . . 2 . Piercing Weapon 7 | . . . . . . . . . 2 . 2 . 1 2 . . . . . . . . . . . . . . . . . . . . . Special Melee Weapon 3 | . . . . . . . 3 . . . . . . . . . . . . . . . . . . . . . . . . . . . . Unidentified Prototypes 15 | . . . . 1 1 . 2 . 1 . . . . 2 . . 2 3 . . . 1 . 1 1 . . . . . . . . . . Parts Lost 90 | . . 11 . 1 5 3 10 . . . . . 10 3 . . . . . . . 1 . . . 3 . . . . 1 8 5 28 1 Power 14 | . . 2 . 1 1 . 3 . . . . . 1 . . . . . . . . . . . . . . . . . 1 2 . 3 . Propulsion 26 | . . 4 . . 1 . 3 . . . . . 2 1 . . . . . . . . . . . 2 . . . . . 3 3 6 1 Utility 28 | . . . . . . 2 2 . . . . . 3 1 . . . . . . . 1 . . . 1 . . . . . 2 1 15 . Weapon 22 | . . 5 . . 3 1 2 . . . . . 4 1 . . . . . . . . . . . . . . . . . 1 1 4 . Highest Loss Streak 18 | . . 6 . 1 2 3 3 . . . . . 4 1 . . . . . . . 1 . . . 2 . . . . 1 4 3 18 1 Average Slot Usage (%) 91 | . 98 97 11 78 92 89 90 92 92 92 92 92 88 90 100 100 97 94 93 87 87 85 82 81 83 80 77 91 90 85 83 87 88 78 6 Engine 1 | . 14 13 . 7 6 9 6 2 . . . . . . . . . 4 . . . . . . . . . . . . . . . 1 . Reactor 7 | . . . . . . . . 4 7 7 7 7 6 12 13 13 12 5 6 5 5 5 5 5 5 5 5 5 5 5 5 8 8 5 . Treads 6 | . 28 22 . 9 11 27 19 14 15 15 15 15 12 1 6 6 5 . . . . . . . . . . . . . . . . . . Wheel 9 | . . 4 . 10 1 . 3 1 . . . . 1 18 13 13 13 20 20 17 17 16 17 16 16 13 13 . . . . . . . . Hover 3 | . . . . . . . . . . . . . . . . . . . . . . . . . . . 4 30 30 30 30 30 28 18 . Device 10 | . 1 . 5 14 14 9 12 7 5 6 4 . 11 9 16 12 13 15 6 4 10 7 11 10 11 10 8 9 10 10 7 6 7 9 . Storage 26 | . 24 27 5 12 18 18 23 33 30 32 38 33 25 24 26 26 26 27 33 29 29 29 29 28 27 27 25 25 25 25 25 22 24 23 . Processor 4 | . . . . . . . . 3 . 6 7 7 7 2 3 6 5 . 6 5 5 5 5 5 5 5 5 5 5 5 5 9 8 8 . Protection 5 | . . . . . 5 8 4 2 10 . 2 11 4 5 6 6 5 7 6 11 5 6 5 6 11 11 9 10 10 5 5 4 5 1 . Energy Gun 1 | . 14 12 . . 1 . . . . . . . 3 1 6 5 . 3 . . . . . . . . . . . . . . . . . Energy Cannon 6 | . . . . . 13 17 14 8 10 14 10 1 4 4 6 6 4 2 13 11 5 4 5 5 5 4 4 4 4 5 3 3 2 . . Ballistic Gun 1 | . 13 13 . 14 3 . . . . . . . . 3 . . 1 2 . . . . . . . . . . . . . . . . . Launcher 1 | . . 1 . 8 . . . . . . 3 1 2 . . . 4 . . . . . . . . . . . . . . . . . . Naked Turns 210 | . . 19 191 . . . . . . . . . . . . . . . . . . . . . . . . . . . . . . . . Heaviest Build 239 | 13 57 58 2 43 83 97 121 141 157 166 166 158 152 205 173 175 203 215 203 210 210 238 199 209 209 212 235 210 209 210 239 223 200 153 . Greatest Support 166 | 40 40 40 3 23 62 62 62 90 90 90 90 90 93 70 24 24 36 36 36 52 52 52 52 52 52 52 120 120 120 120 120 140 140 166 17 Greatest Overweight (x) 20 | . 1 5 . 2 2 1 8 5 1 1 1 1 10 20 7 7 8 5 5 4 4 4 3 4 4 8 8 1 1 1 3 2 1 5 . Average Overweight (x) 3 | . . 2 . . 1 1 1 1 1 1 1 1 1 4 7 7 6 4 5 3 3 3 3 3 3 5 4 1 1 1 1 1 . . . Largest Inventory Capacity 48 | 6 18 18 4 12 18 20 32 38 34 40 40 40 34 40 34 34 36 36 36 36 36 36 36 36 36 36 36 36 36 36 36 42 48 36 4 Average Capacity 32 | 5 14 17 4 9 16 18 26 34 33 35 40 36 30 32 34 34 34 36 36 36 36 36 36 36 36 36 36 36 36 36 36 36 36 35 4 Most Carried 40 | 6 18 18 4 12 18 20 28 37 34 39 40 40 33 34 34 34 36 36 36 36 36 36 36 36 36 36 36 36 36 36 36 36 36 36 4 Average Carried 32 | 4 14 17 3 7 15 17 25 33 33 34 39 36 28 32 33 33 34 35 35 34 35 35 35 35 35 35 35 35 35 36 35 35 31 33 3 Final Capacity 40 | 6 18 4 4 12 18 20 32 32 34 40 40 34 28 34 34 34 36 36 36 36 36 36 36 36 36 36 36 36 36 36 36 36 36 4 4 Final Carried 40 | 6 18 4 4 12 18 20 28 32 34 39 40 33 28 34 34 34 36 36 36 36 35 36 36 36 36 34 35 36 36 36 36 36 27 4 4 Class Distribution -------------------- 76% | Hauler-Mutant 16% | Scavenger-Mutant 5% | Mutant Dominant Class ---------------- Mutant | -10/Materials Mutant | -10/Mines Mutant | -10/Exiles Scavenger-Mutant | -9/Mines Scavenger-Mutant | -8/Materials Scavenger-Mutant | -8/Garrison Bothacker-Mutant | -7/Factory Hauler-Mutant | -7/Waste Hauler-Mutant | -7/Factory Hauler-Mutant | -7/Lower Caves Hauler-Mutant | -7/Lower Caves Hauler-Mutant | -7/Data Miner Hauler-Mutant | -6/Proximity Caves Hauler-Mutant | -6/Factory Hauler-Mutant | -6/Lower Caves Hauler-Mutant | -6/Lower Caves Hauler-Mutant | -6/Zion Hauler-Mutant | -6/Deep Caves Hauler-Mutant | -5/Proximity Caves Hauler-Mutant | -5/Factory Hauler-Mutant | -5/Waste Hauler-Mutant | -5/Factory Hauler-Mutant | -5/Upper Caves Hauler-Mutant | -5/Upper Caves Hauler-Mutant | -5/Zhirov Hauler-Mutant | -4/Proximity Caves Hauler-Mutant | -4/Factory Scavenger-Mutant | -4/Extension Scavenger-Mutant | -4/Cetus Scavenger-Mutant | -4/Archives Scavenger-Mutant | -4/Hub_04(d) Scavenger-Mutant | -3/Research Scavenger-Mutant | -2/Research Scavenger-Mutant | -2/Quarantine Mutant | -2/Section 7 Resources | -11 -10 -10 -10 -9 -8 -8 -7 -7 -7 -7 -7 -7 -6 -6 -6 -6 -6 -6 -5 -5 -5 -5 -5 -5 -5 -4 -4 -4 -4 -4 -4 -3 -2 -2 -2 ----------- Run | Scr Mat Min Exi Min Mat Gar Fac Was Fac Low Low Dat Pro Fac Low Low Zio Dee Pro Fac Was Fac Upp Upp Zhi Pro Fac Ext Cet Arc Hub Res Res Qua Sec Matter Collected 19683 | 219 276 183 20 313 380 510 881 217 103 177 368 90 690 1081 130 65 2301 246 42 20 50 653 130 540 . 462 782 1345 251 209 2063 2388 1427 1071 . Remotely . | . . . . . . . . . . . . . . . . . . . . . . . . . . . . . . . . . . . . Salvage Created 29929 | . 720 194 . 338 942 418 1464 1388 188 284 280 192 1421 1048 274 49 1838 480 . 188 1657 656 368 711 . 483 1059 2180 417 306 2348 4819 2226 993 . Parts 1093 | . 48 13 . 14 48 15 81 26 9 12 21 2 39 41 8 6 125 6 . 10 17 51 7 17 . 20 32 62 9 7 91 149 79 28 . Haulers Intercepted 17 | . 2 . . . 1 . 2 . 2 . . . . 1 . . . . . . . 1 . . . . . 3 . . 1 2 1 1 . Recyclers Shooed 8 | . . . . 1 1 . 1 . . . . . . . 1 . . . . . . . . . . . 2 . . . . 2 . . . Parts Field Recycled . | . . . . . . . . . . . . . . . . . . . . . . . . . . . . . . . . . . . . Retrieved Matter . | . . . . . . . . . . . . . . . . . . . . . . . . . . . . . . . . . . . . Parts Self-Destructed 101 | . . . . . . . . . . 12 17 . 24 . 7 5 6 . . . . . 1 17 . 12 . . . . . . . . . Prevented 43 | . . . . . . . . . . . 3 . 18 . . . . . . . . . 4 11 . 7 . . . . . . . . . Kills | -11 -10 -10 -10 -9 -8 -8 -7 -7 -7 -7 -7 -7 -6 -6 -6 -6 -6 -6 -5 -5 -5 -5 -5 -5 -5 -4 -4 -4 -4 -4 -4 -3 -2 -2 -2 ------- Run | Scr Mat Min Exi Min Mat Gar Fac Was Fac Low Low Dat Pro Fac Low Low Zio Dee Pro Fac Was Fac Upp Upp Zhi Pro Fac Ext Cet Arc Hub Res Res Qua Sec Combat Hostiles Destroyed 408 | . 17 9 . 7 15 14 29 5 1 8 18 4 33 14 2 4 8 5 . 3 6 7 2 12 . 18 9 26 5 3 29 52 32 11 . Melee 1 | . . . . . . . . . . . . . . . . . . . . . . . . . . . . . . . . 1 . . . Guns 55 | . 14 4 . . 5 . . . . . . . 2 6 . . 2 3 . . . . . . . . 1 . . . 8 6 3 1 . Cannons 120 | . . . . . 9 6 16 5 1 2 2 . 6 7 1 . 4 . . 2 . 5 1 8 . 1 2 9 3 1 6 12 8 3 . AOE 128 | . 3 5 . 7 1 8 13 . . 6 16 1 22 . 1 4 . . . 1 . . . . . 16 . 7 . . 1 6 8 2 . Classes Destroyed 28 | . 5 2 . 1 3 1 2 1 . 1 . . . 1 . . 3 3 . . 1 . . . . 1 . 1 . . 1 1 . . . Worker 23 | . 1 . . . 2 . 7 . 1 . . . . . . . . . . . . 2 . . . . 2 1 . . 3 3 1 . . Builder 10 | . . 1 . . . . 2 . . . . . . . . . . . . 1 . . . . . . 2 1 . . . 2 1 . . Tunneler 2 | . . 1 . . . . . . . . . . . . . . . . . . . . . . . . . . . . . 1 . . . Hauler 17 | . 2 . . . 1 . 2 . 2 . . . . 1 . . . . . . . 1 . . . . . 3 . . 1 2 1 1 . Recycler 20 | . . . . 3 1 . 4 . . . . . . . . . . . . . . . . . . . 3 1 . . . 6 . 2 . Carrier 1 | . . . . . . . . . . . . . . . . . . . . . . . . . . 1 . . . . . . . . . Minesweeper 2 | . . . . . . . . . . 1 . . . . . . . . . . . . . 1 . . . . . . . . . . . Mechanic 2 | . . . . . 1 . . . . . . . . . . . . . . . . . . . . . . . . . . . 1 . . Operator 3 | . . . . . . . . . . . . . . . . . . . . . . . . . . . . . . 1 2 . . . . Drone 1 | . . . . . . . . . . . . . . 1 . . . . . . . . . . . . . . . . . . . . . Watcher 22 | . 3 . . . 1 . 1 . . . . . . 1 . . . . . 1 . . . . . . . 2 2 . 5 5 1 . . Swarmer 88 | . 6 5 . 7 . . 4 . . 3 13 . 7 . . 4 . . . . . . . 2 . 14 . 7 . . 4 7 5 . . Saboteur 1 | . . . . . . . . . . . . . . . . . . . . . . . . . . . . . . . . 1 . . . Grunt 149 | . 11 4 . . 11 10 17 . 1 5 . . 14 3 2 . . . . 3 . 2 1 8 . 4 5 9 . . 11 19 7 2 . Brawler 13 | . . . . . . . 2 . . . . . 4 . . . . . . . . . 1 1 . . . . . . . 4 . 1 . Duelist 11 | . . . . . . 1 1 . . . . . 5 . . . . . . . . 1 . . . . . . . . . 2 . 1 . Protector 2 | . . . . . . . . . . . . . . . . . . . . . . . . . . . . . . . 1 1 . . . Sentry 32 | . . . . . 3 2 2 . . . . . 2 2 . . . . . . . . . . . . . 7 . 3 4 4 3 . . Hunter 23 | . . . . . 1 1 . . . . 1 . . 1 . . 1 . . . . 2 . . . . . 2 . . . 2 9 3 . Programmer 18 | . . . . . . . 3 . . . . . 1 2 . . . . . . . 1 . 1 . . 2 . . . 2 1 5 . . Behemoth 2 | . . . . . . . . . . . . . . . . . . . . . . . . . . . . 1 . . . 1 . . . Compactor 11 | . . . . . . . . 5 . . . . . . . . . . . . 6 . . . . . . . . . . . . . . Cetus Guard 5 | . . . . . . . . . . . . . . . . . . . . . . . . . . . . . 5 . . . . . . Enhanced Grunt 4 | . . . . . . . . . . . . 4 . . . . . . . . . . . . . . . . . . . . . . . Lightning 3 | . . . . . . . . . . . . . . . . . . . . . . . . . . . . . . . 3 . . . . Tracker 15 | . . . . . . . . . . . . . . 3 . . . . . . . . . . . . 1 . . . 2 5 1 3 . Combat Programmer 16 | . . . . . . . . . . . . . . 3 . . . . . . . 2 . . . . 1 . . . 2 5 2 1 . Zionite 55 | . . . . . . . . . . . . . . . . . 55 . . . . . . . . . . . . . . . . . . Z-Technician 5 | . . . . . . . . . . . . . . . . . . 5 . . . . . . . . . . . . . . . . . Decomposer 1 | . . . . . . . . . . . . . . . 1 . . . . . . . . . . . . . . . . . . . . Packrat 2 | . . . . . . . . . . . . . . . 2 . . . . . . . . . . . . . . . . . . . . Tinkerer 9 | . . . . . . . . . . . . . . . . . 9 . . . . . . . . . . . . . . . . . . Assembled 3 | . . . . . . . . . . . . . . . . . . 3 . . . . . . . . . . . . . . . . . Golem 2 | . . . . . . . . . . . . . . . . . . 2 . . . . . . . . . . . . . . . . . Surgeon 1 | . . . . . . . . . . 1 . . . . . . . . . . . . . . . . . . . . . . . . . Wasp 1 | . . . . . . . . . 1 . . . . . . . . . . . . . . . . . . . . . . . . . . Thug 2 | . . . . . . . . . . . 1 . . . . . . . . . . . . . . . . . . . 1 . . . . Savage 4 | . . . . . . . . . . . 3 . . . . . . . . . . . . . . . . 1 . . . . . . . Butcher 2 | . . . . . . . . . . . . . . . . . . . . . . . . . . . . 2 . . . . . . . Martyr 2 | . . . . . . . . . . . . . . . . . . . . . 2 . . . . . . . . . . . . . . Guerrilla 2 | . . . . . . . . . . . . . . . . . . . . . . . . . . . . 1 . . 1 . . . . Mutant 5 | . . . . . . . . . . . . . . . . . 5 . . . . . . . . . . . . . . . . . . Best Kill Streak 17 | . 3 3 . 4 4 5 16 3 1 4 4 4 13 4 2 4 4 2 . 4 6 2 2 4 . 6 8 10 5 4 17 13 11 7 . Combat Bots Only 16 | . 3 3 . 4 4 5 11 3 1 4 4 4 13 4 2 4 1 2 . 3 6 2 2 4 . 5 4 7 4 3 16 11 9 6 . Max Kills in Single Turn 4 | . 3 2 . 2 1 2 4 1 1 3 3 2 3 1 1 4 1 2 . 2 1 1 1 1 . 4 1 4 1 1 2 4 3 1 . Gunslinging 1 | . 1 . . . . . . . . . . . . . . . . . . . . . . . . . . . . . . . . . . Exploded 4 | . 3 2 . 2 1 2 3 . . 3 3 1 3 . 1 4 . . . 1 . . . . . 4 . 4 . . 1 4 2 1 . Melee 1 | . . . . . . . . . . . . . . . . . . . . . . . . . . . . . . . . 1 . . . Uniques/NPCs Destroyed 3 | . . . . 1 . . . . . . . . . . . . 2 . . . . . . . . . . . . . . . . . . YI-UF0 (-9/Mines) AD-0RF (-6/Zion) Imprinter (-6/Zion) Combat | -11 -10 -10 -10 -9 -8 -8 -7 -7 -7 -7 -7 -7 -6 -6 -6 -6 -6 -6 -5 -5 -5 -5 -5 -5 -5 -4 -4 -4 -4 -4 -4 -3 -2 -2 -2 -------- Run | Scr Mat Min Exi Min Mat Gar Fac Was Fac Low Low Dat Pro Fac Low Low Zio Dee Pro Fac Was Fac Upp Upp Zhi Pro Fac Ext Cet Arc Hub Res Res Qua Sec Damage Taken 24323 | . 417 849 . 209 808 639 1453 . 223 130 663 . 2401 1911 27 25 199 342 . 120 . 534 . 107 . 524 282 309 74 35 1613 2917 1736 5127 649 Core 2941 | . 20 81 . 92 163 . 167 . 8 4 23 . 276 171 . 9 13 12 . . . 47 . 2 . . 6 30 . . 169 192 96 799 561 Absorbed by Shields 555 | . . . . . . . . . . . . . . 7 28 26 155 166 . . . . . . . . . 73 71 . . 29 . . . Reduced by Siege Mode 167 | . . . . . . . . . . . . . 98 69 . . . . . . . . . . . . . . . . . . . . . Core Remaining (%) 70 | 100 . . . 22 . 70 . . . . . . 31 . . . . . 75 . . . . . . 95 . . . . 82 85 . . . Volleys Fired 1809 | . 50 30 . 29 53 47 79 107 11 14 16 4 64 108 38 18 194 52 22 19 25 76 13 48 1 30 33 114 27 9 147 175 94 60 2 Largest 2 | . 2 2 . 2 2 2 2 1 2 2 2 1 2 2 2 1 2 2 2 2 1 2 1 1 1 1 1 2 1 1 1 1 1 1 1 Hottest 318 | . 70 100 . 43 135 128 133 68 133 130 130 39 113 113 110 43 78 100 50 50 220 98 70 98 40 98 220 318 70 70 98 113 220 220 . Shots Fired 2220 | . 100 54 . 45 104 61 139 107 21 24 23 4 98 169 40 18 197 82 29 31 25 97 12 48 1 30 33 119 27 9 145 176 94 56 2 Gun 685 | . 98 47 . 33 45 . . . . . . . 14 88 2 . 159 69 . . . . . . . . 3 . . . 62 29 19 17 . Cannon 1197 | . . . . . 57 46 123 99 20 20 11 . 53 72 37 17 38 13 29 31 12 78 12 48 . 23 20 62 23 9 62 112 49 21 . Launcher 127 | . 2 7 . 12 2 15 16 . . 4 12 2 25 . 1 1 . . . . . . . . . 7 . 7 . . . 1 8 5 . Special 211 | . . . . . . . . 8 1 . . 2 6 9 . . . . . . 13 19 . . 1 . 10 50 4 . 21 34 18 13 2 Kinetic 543 | . 49 21 . 33 34 . . . . . . . 20 68 . . 162 5 . . . 21 . . . . 3 . . . 62 29 19 17 . Thermal 883 | . 49 26 . . 68 46 123 99 20 20 11 . 16 60 39 17 3 12 29 31 25 63 . 15 . 7 6 17 . . 12 24 20 25 . Explosive 113 | . . 6 . 12 2 15 16 . . 4 12 . 16 . 1 1 . . . . . . . . . 7 . 7 . . . 1 8 5 . Electromagnetic 536 | . 2 1 . . . . . . . . . 2 40 32 . . 32 60 . . . . 12 33 . 16 20 55 23 9 55 101 38 5 . Phasic 5 | . . . . . . . . . . . . . . . . . . 5 . . . . . . . . . . . . . . . . . Robot Hit Streak 59 | . 14 8 . 11 10 17 16 16 7 5 5 1 21 30 9 . 19 8 . 12 18 11 5 14 7 13 14 59 8 5 11 25 19 49 . Robot Miss Streak 4 | . 3 2 . 2 2 3 4 3 2 3 2 1 4 4 1 1 3 3 . 1 2 3 1 2 . 1 3 2 1 1 4 4 2 1 . Penetration Max 1 | . . . . . . . . . . . . . . . . . . . . . . . 1 1 . 1 1 1 1 1 1 1 1 . . Secondary Targets 5 | . 3 1 . . 1 . . . . . . . . . . . . . . . . . . . . . . . . . . . . . . Max Gunslinging Chain 1 | . 1 1 . . 1 . . . . . . . . . . . . . . . . . . . . . . . . . . . . . . Capacitor 70 | . . . . . . . . . . . . . . . . . . . . . . . . . . . . . . . . 34 26 10 . Shots Hit Robots 1415 | . 75 35 . 27 73 29 82 78 15 15 10 3 74 136 10 . 145 35 . 14 24 47 10 25 1 8 23 79 8 6 101 138 54 35 . Core Hits 946 | . 32 18 . 21 43 30 86 15 6 20 30 16 67 54 9 5 86 15 . 7 11 12 7 11 . 21 21 62 7 2 70 73 52 36 1 Critical Hits 98 | . 2 1 . . 2 . 1 9 . . . . . 1 . . 6 . . . . 4 2 6 . . 3 8 4 3 10 23 12 1 . Critical Kills 40 | . . . . . 1 . 1 3 . . . . . 1 . . 3 . . . . . . 2 . . 1 5 2 1 4 9 6 1 . Critical Parts Destroyed 47 | . 2 1 . . 1 . . 2 . . . . . . . . 3 . . . . 4 1 4 . . 1 3 2 2 4 12 5 . . Melee Attacks 33 | . . . . . . . 6 . 6 . 9 1 2 6 . 1 . . . . . . . . . . . . . . . . . 2 . Impact . | . . . . . . . . . . . . . . . . . . . . . . . . . . . . . . . . . . . . Slashing 8 | . . . . . . . 2 . 3 . . . . . . 1 . . . . . . . . . . . . . . . . . 2 . Piercing 21 | . . . . . . . . . 3 . 9 1 2 6 . . . . . . . . . . . . . . . . . . . . . Sneak Attacks 3 | . . . . . . . 1 . 1 . . 1 . . . . . . . . . . . . . . . . . . . . . . . Combat Hostiles . | . . . . . . . . . . . . . . . . . . . . . . . . . . . . . . . . . . . . Follow-up Attacks . | . . . . . . . . . . . . . . . . . . . . . . . . . . . . . . . . . . . . Damage Inflicted 68175 | 4 1038 871 . 964 1729 1453 3708 1579 631 1037 1934 920 4207 3869 497 263 5286 997 . 1113 1109 1652 917 1512 . 2166 1661 5273 975 451 4984 8137 4999 2220 19 Guns 13055 | . 928 396 . 278 464 . . . . . . . 211 2109 60 . 4155 532 . . . . . . . . 142 . . . 1305 1095 679 701 . Cannons 31851 | . . . . . 945 445 1719 1579 466 273 165 . 973 1701 231 . 1131 . . 665 521 1554 917 1512 . 612 1288 2938 975 451 2288 6175 2034 293 . Explosions 20225 | . 99 431 . 653 220 1008 1866 . . 764 1769 830 3023 59 206 263 . 465 . 448 . . . . . 1554 33 2074 . . 1306 653 1827 674 . Melee 192 | . . . . . . . . . 102 . . 90 . . . . . . . . . . . . . . . . . . . . . . . Ramming 416 | 4 11 44 . 33 100 . 123 . 63 . . . . . . . . . . . . . . . . . . . . . . . . 19 19 Kinetic 12183 | . 520 195 . 278 359 . . . . . . . 329 1879 . . 4199 93 . . . 409 . . . . 142 . . . 1305 1095 679 701 . Thermal 15729 | . 414 201 . . 1050 445 1719 1579 466 273 165 . 349 1533 291 . 86 465 . 665 1109 1243 . 265 . 306 231 333 . . 1010 539 459 533 . Explosive 15976 | . . 373 . 653 220 1008 1866 . . 764 1769 . 2255 . 206 263 . . . 448 . . . . . 1248 . 2074 . . . 328 1827 674 . Electromagnetic 23679 | . 93 58 . . . . . . . . . 830 1274 457 . . 1001 439 . . . . 917 1247 . 612 1288 2866 975 451 2669 6175 2034 293 . Impact . | . . . . . . . . . . . . . . . . . . . . . . . . . . . . . . . . . . . . Slashing 102 | . . . . . . . . . 102 . . . . . . . . . . . . . . . . . . . . . . . . . . Piercing 90 | . . . . . . . . . . . . 90 . . . . . . . . . . . . . . . . . . . . . . . Highest Corruption 43 | . . . . . . . 2 2 2 1 1 1 3 . . . . . . . . 2 2 2 2 2 1 1 1 1 6 6 6 42 43 Average Corruption 2 | . . . . . . . 1 2 1 1 1 1 2 . . . . . . . . 1 2 2 2 2 1 1 1 1 2 4 5 14 42 Corruption Purged 2 | . . . . . . . . . 1 . . . . . . . . . . . . . . . . . . . . . . . . 1 . Effects 231 | . . . . . . . 3 9 12 15 8 1 9 . . . . . . . . 1 17 17 5 9 1 6 2 4 19 33 1 49 10 Message Errors 64 | . . . . . . . . 2 5 6 4 . 3 . . . . . . . . 1 9 4 2 2 1 5 . 2 6 2 . 10 . Matter Fused 18 | . . . . . . . . . . . . . 1 . . . . . . . . . . . . . . . . . 2 6 1 6 2 Heat Flow Errors 22 | . . . . . . . 1 . 2 . . . 2 . . . . . . . . . 2 5 1 2 . . . . 2 2 . 3 . Energy Discharges 32 | . . . . . . . 1 3 4 3 2 . 1 . . . . . . . . . 2 1 . 2 . . 1 . 1 5 . 5 1 Parts Rejected 2 | . . . . . . . . . . . . . . . . . . . . . . . . . . . . . . . . 1 . 1 . Data Loss (minor) 36 | . . . . . . . . 2 1 6 1 . . . . . . . . . . . 3 6 2 1 . . . 2 4 4 . 3 1 Data Loss (major) 1 | . . . . . . . . . . . . . . . . . . . . . . . . . . . . . . . . . . 1 . Misfires 1 | . . . . . . . . . . . . . . . . . . . . . . . . . . . . . . . . 1 . . . Alerts 1 | . . . . . . . . . . . . . . . . . . . . . . . . . . . . . . . . . . 1 . Misdirections 11 | . . . . . . . . . . . . . . . . . . . . . . . . . . . . . . . . . . 6 5 Targeting Errors 35 | . . . . . . . . 2 . . 1 1 2 . . . . . . . . . . 1 . 2 . 1 1 . 2 12 . 9 1 Weapon Failures 8 | . . . . . . . 1 . . . . . . . . . . . . . . . 1 . . . . . . . 2 . . 4 . Overload Shots . | . . . . . . . . . . . . . . . . . . . . . . . . . . . . . . . . . . . . Overflow Damage 3180 | . . 56 . 90 45 1 83 . 28 61 67 97 179 112 45 . 168 126 . 47 2 214 229 104 . 178 58 263 102 12 221 465 95 32 . Projectiles 2202 | . . . . . 45 1 39 . 4 19 . . 31 112 45 . 168 . . 38 2 214 229 104 . 54 58 200 102 12 208 465 52 . . Explosions 874 | . . 56 . 90 . . 44 . . 42 67 17 148 . . . . 126 . 9 . . . . . 124 . 63 . . 13 . 43 32 . Melee 104 | . . . . . . . . . 24 . . 80 . . . . . . . . . . . . . . . . . . . . . . . Knockbacks 18 | . . . . . . . 3 . . . . . 4 1 . . 2 . . . . 8 . . . . . . . . . . . . . Impact 2 | . . . . . . . 2 . . . . . . . . . . . . . . . . . . . . . . . . . . . . Kinetic 12 | . . . . . . . . . . . . . 3 1 . . 2 . . . . 6 . . . . . . . . . . . . . Secondary 4 | . . . . . . . 1 . . . . . 1 . . . . . . . . 2 . . . . . . . . . . . . . Self-Inflicted Damage 1112 | . . 45 . 84 41 10 91 . . 14 220 . 328 . . . . . . . . . . . . 3 28 11 . . 201 . 27 . 9 Shots 42 | . . 2 . 4 2 1 4 . . 1 4 . 13 . . . . . . . . . . . . 1 1 2 . . 6 . 1 . . Rammed 38 | 1 1 4 . 4 8 . 13 . 3 . . . . . . . . . . . . . . . . . . . . . . . . 2 2 Targets Rammed 43 | 1 2 6 . 4 9 . 14 . 3 . . . . . . . . . . . . . . . . . . . . . . . . 2 2 Kicked . | . . . . . . . . . . . . . . . . . . . . . . . . . . . . . . . . . . . . Crushed 5 | . 1 2 . . 1 . 1 . . . . . . . . . . . . . . . . . . . . . . . . . . . . Highest Temperature 325 | . 99 288 . . 282 79 294 . 252 234 207 20 300 14 . 12 324 5 . . 325 282 193 198 92 247 . . . . 221 305 312 138 . Average Temperature 67 | . 32 95 . . 88 16 112 . 79 68 106 10 75 7 . 9 44 5 . . 120 155 103 105 49 51 . . . . 68 57 83 69 . Received Heat Transfer 3509 | . 153 207 . . 405 297 522 . 60 45 36 . 615 90 4 . 234 45 . 51 . 108 . 9 . 42 54 21 4 . 36 342 36 39 54 Effects 4 | . . . . . . . 1 . . . . . 3 . . . . . . . . . . . . . . . . . . . . . . Energy Bleed 2 | . . . . . . . 1 . . . . . 1 . . . . . . . . . . . . . . . . . . . . . . Interference 2 | . . . . . . . . . . . . . 2 . . . . . . . . . . . . . . . . . . . . . . Siege Activations 8 | . . . . . . . . . . . . . 5 2 . . . . . . . 1 . . . . . . . . . . . . . Total Turns 140 | . . . . . . . . . . . . . 71 63 . . . . . . . 6 . . . . . . . . . . . . . Longest Duration 32 | . . . . . . . . . . . . . 32 32 . . . . . . . 6 . . . . . . . . . . . . . Robots Corrupted 89 | . . . . . . . . . . . . 3 3 . . . 4 2 . . . . 1 4 . 2 5 10 3 3 11 29 8 1 . Combat Hostiles 73 | . . . . . . . . . . . . 3 3 . . . 2 2 . . . . 1 4 . 1 4 9 2 2 9 22 8 1 . Parts Fried 231 | . . . . . . . . . . . . 1 9 6 . . 13 1 . . . . 1 11 . 3 20 19 10 7 27 75 24 4 . Impact Corruptions 1 | . . . . . . . . . 1 . . . . . . . . . . . . . . . . . . . . . . . . . . Robots Melted 19 | . . . . . . . . . . . . . . 1 . . . . . . 6 . . . . . 1 1 . . . . 5 5 . Combat Hostiles 18 | . . . . . . . . . . . . . . 1 . . . . . . 6 . . . . . 1 1 . . . . 5 4 . Parts Melted 58 | . 1 . . . 3 . 11 . 1 1 1 . . 2 . . . . . . 10 . . . . . 3 7 . . 2 . 13 3 . Heat Transferred 27693 | . 1197 592 . . 1702 740 2368 2849 666 370 222 . 444 1752 421 . 111 50 . 350 3635 835 . 300 . 200 844 1411 . . 1024 570 2160 2880 . Parts Sabotaged 4 | . . . . . . . . . . . . . . . . . . . . . . . . . . . . . . . . 4 . . . Parts Stolen . | . . . . . . . . . . . . . . . . . . . . . . . . . . . . . . . . . . . . Parts Stripped . | . . . . . . . . . . . . . . . . . . . . . . . . . . . . . . . . . . . . Power Chain Reactions 12 | . 1 . . . . . . . . . . . . 1 . . . 1 . . . . . . . 1 1 . . . 6 1 . . . Missiles Intercepted . | . . . . . . . . . . . . . . . . . . . . . . . . . . . . . . . . . . . . Alert | -11 -10 -10 -10 -9 -8 -8 -7 -7 -7 -7 -7 -7 -6 -6 -6 -6 -6 -6 -5 -5 -5 -5 -5 -5 -5 -4 -4 -4 -4 -4 -4 -3 -2 -2 -2 ------- Run | Scr Mat Min Exi Min Mat Gar Fac Was Fac Low Low Dat Pro Fac Low Low Zio Dee Pro Fac Was Fac Upp Upp Zhi Pro Fac Ext Cet Arc Hub Res Res Qua Sec Peak Influence 2390 | . 327 145 . 170 187 691 796 280 777 . . . . 188 . . . . . 193 42 686 . . . . 610 1172 779 454 2390 2053 2364 1461 525 Average Influence 411 | . 174 70 . 51 91 482 437 148 472 . . . . 70 . . . . . 38 29 324 . . . . 297 355 604 266 968 1437 1669 1083 470 Maximum Alert Level 5 | . 1 . . . . 2 3 1 3 . . . . . . . . . . . . 2 . . . . 2 4 3 2 5 5 5 4 2 Low Security (%) 43 | 100 56 100 . 100 100 8 5 59 10 . . . . 100 . . . . . 100 100 13 . . . . 47 28 . 33 13 . . . . Level 1 18 | . 43 . . . . 19 46 40 11 . . . . . . . . . . . . 60 . . . . . 36 . 36 3 . . . 19 Level 2 21 | . . . . . . 72 27 . 71 . . . . . . . . . . . . 25 . . . . 52 27 79 30 21 . . . 80 Level 3 5 | . . . . . . . 20 . 6 . . . . . . . . . . . . . . . . . . . 20 . 25 . 8 66 . Level 4 7 | . . . . . . . . . . . . . . . . . . . . . . . . . . . . 6 . . 9 80 39 33 . Level 5 2 | . . . . . . . . . . . . . . . . . . . . . . . . . . . . . . . 26 1 34 . . High Security 1 | . . . . . . . . . . . . . . . . . . . . . . . . . . . . . . . . 18 17 . . Max Security . | . . . . . . . . . . . . . . . . . . . . . . . . . . . . . . . . . . . . Squads Dispatched 114 | . 5 . . . 1 . 10 . 10 . . . 1 9 . 1 . . . 3 . 8 . . . . 4 1 . . 10 21 12 14 4 Investigation 24 | . 4 . . . 1 . 5 . 4 . . . . . . 1 . . . 1 . 1 . . . . . . . . 1 1 2 2 1 Extermination 13 | . . . . . . . 3 . 2 . . . . 2 . . . . . . . 1 . . . . 1 . . . 1 . 1 2 . Reinforcement 23 | . 1 . . . . . 2 . 4 . . . . 2 . . . . . 1 . . . . . . 1 1 . . 4 1 2 1 3 Assault 19 | . . . . . . . . . . . . . 1 . . . . . . . . . . . . . . . . . . 12 4 2 . Garrison 2 | . . . . . . . . . . . . . . . . . . . . 1 . 1 . . . . . . . . . . . . . Intercept 33 | . . . . . . . . . . . . . . 5 . . . . . . . 5 . . . . 2 . . . 4 7 3 7 . Construction Impeded 11 | . . . . . . . 2 . 2 . . . . . . . . . . . . . . . . . 1 1 . . 2 1 2 . . Haulers Reinforced 3 | . . . . . . . . . 1 . . . . . . . . . . 1 . . . . . . . . . . . . . 1 . Stealth | -11 -10 -10 -10 -9 -8 -8 -7 -7 -7 -7 -7 -7 -6 -6 -6 -6 -6 -6 -5 -5 -5 -5 -5 -5 -5 -4 -4 -4 -4 -4 -4 -3 -2 -2 -2 --------- Run | Scr Mat Min Exi Min Mat Gar Fac Was Fac Low Low Dat Pro Fac Low Low Zio Dee Pro Fac Was Fac Upp Upp Zhi Pro Fac Ext Cet Arc Hub Res Res Qua Sec Distress Signals 22 | . 2 . . . 2 . 2 . 1 . . . . . . . . . . 1 . 1 . . . . . . 2 . 4 3 . 1 3 Communications Jammed . | . . . . . . . . . . . . . . . . . . . . . . . . . . . . . . . . . . . . Distress Signals . | . . . . . . . . . . . . . . . . . . . . . . . . . . . . . . . . . . . . Times Spotted 586 | . 25 21 . 11 21 14 37 7 18 9 15 1 40 18 3 4 19 3 . 5 6 23 3 15 . 17 9 36 6 2 42 80 31 26 19 Peak Tracking Total 16 | . 4 11 . 4 5 5 7 2 3 4 4 2 13 5 3 4 3 1 . 5 3 4 2 5 . 5 4 9 5 1 9 15 6 8 16 Tactical Retreats 40 | . . 2 . . 1 1 1 1 1 . . . 5 1 . . 5 . . 1 . 1 1 4 . . . 1 . . 3 5 1 4 1 Traps | -11 -10 -10 -10 -9 -8 -8 -7 -7 -7 -7 -7 -7 -6 -6 -6 -6 -6 -6 -5 -5 -5 -5 -5 -5 -5 -4 -4 -4 -4 -4 -4 -3 -2 -2 -2 ------- Run | Scr Mat Min Exi Min Mat Gar Fac Was Fac Low Low Dat Pro Fac Low Low Zio Dee Pro Fac Was Fac Upp Upp Zhi Pro Fac Ext Cet Arc Hub Res Res Qua Sec Traps Triggered 23 | . . . . . 2 3 1 . 1 . . 7 . . . . . . . 1 . . . . . . . 1 . . 2 3 . 1 1 Indirectly 8 | . . . . . . . . . . . . 7 . . . . . . . . . . . . . . . . . . 1 . . . . Trap Hack Attempts . | . . . . . . . . . . . . . . . . . . . . . . . . . . . . . . . . . . . . Triggered . | . . . . . . . . . . . . . . . . . . . . . . . . . . . . . . . . . . . . Disarmed 7 | . . . . . . . . . . . . . . . . . . . . . . . . . . . . 6 . . 1 . . . . Reprogrammed . | . . . . . . . . . . . . . . . . . . . . . . . . . . . . . . . . . . . . Reused . | . . . . . . . . . . . . . . . . . . . . . . . . . . . . . . . . . . . . Traps Extracted 1 | . . . . . . . . . . . 1 . . . . . . . . . . . . . . . . . . . . . . . . Installed 8 | . . . . . . . . . . . . 7 . . . . . . . . . . . . 1 . . . . . . . . . . Triggered 7 | . . . . . . . . . . . 6 . . . . . . . . . . . . . . . . 1 . . . . . . . Machines | -11 -10 -10 -10 -9 -8 -8 -7 -7 -7 -7 -7 -7 -6 -6 -6 -6 -6 -6 -5 -5 -5 -5 -5 -5 -5 -4 -4 -4 -4 -4 -4 -3 -2 -2 -2 ---------- Run | Scr Mat Min Exi Min Mat Gar Fac Was Fac Low Low Dat Pro Fac Low Low Zio Dee Pro Fac Was Fac Upp Upp Zhi Pro Fac Ext Cet Arc Hub Res Res Qua Sec Machines Disabled 76 | . . 1 . 1 1 3 4 . 2 . . . . 1 . . 2 4 . 2 . 2 . . . . 1 6 2 2 38 . 2 2 . Max in Single Turn 12 | . . 1 . 1 1 1 1 . 1 . . . . 1 . . 1 1 . 2 . 1 . . . . 1 1 1 1 12 . 1 1 . Garrison Access 7 | . . . . . . . . . . . . . . . . . . . . . . 3 . . . . . . . . 1 2 . 1 . Garrison Relay 3 | . . . . . . 3 . . . . . . . . . . . . . . . . . . . . . . . . . . . . . Network Hub 4 | . . . . . . . . . . . . . . . . . . . . . . . . . . . . . . . 4 . . . . Energy Cycler 1 | . . . . . . . . . . . . . . . . . . . . . . . . . . . . 1 . . . . . . . Machines Sabotaged . | . . . . . . . . . . . . . . . . . . . . . . . . . . . . . . . . . . . . Garrisons Compromised . | . . . . . . . . . . . . . . . . . . . . . . . . . . . . . . . . . . . . Overloaded Fab Kills . | . . . . . . . . . . . . . . . . . . . . . . . . . . . . . . . . . . . . Fab Network Shutdowns 2 | . . . . . . . . . . . . . . . . . . . . . . . . . . . 1 . . . . . 1 . . Hacking | -11 -10 -10 -10 -9 -8 -8 -7 -7 -7 -7 -7 -7 -6 -6 -6 -6 -6 -6 -5 -5 -5 -5 -5 -5 -5 -4 -4 -4 -4 -4 -4 -3 -2 -2 -2 --------- Run | Scr Mat Min Exi Min Mat Gar Fac Was Fac Low Low Dat Pro Fac Low Low Zio Dee Pro Fac Was Fac Upp Upp Zhi Pro Fac Ext Cet Arc Hub Res Res Qua Sec Machines Accessed 125 | . 6 . 4 . 5 . 5 . 7 3 1 4 . 7 . 2 . . . 2 . 12 2 3 9 . 3 12 5 . 6 5 7 14 1 Terminals 63 | . 4 . . . 4 . 1 . 4 . . . . 2 . 1 . . . . . 6 . . . . 1 10 5 . 5 4 4 11 1 Fabricators 6 | . . . . . . . 1 . 1 . . . . 1 . . . . . . . 1 . . . . 1 . . . . . 1 . . Repair Stations 9 | . . . . . . . . . . . . . . 3 . . . . . 1 . 1 . . . . 1 1 . . . . . 2 . Recycling Units 12 | . 2 . . . . . 3 . 2 . . . . 1 . . . . . . . 1 . . . . . 1 . . . . 2 . . Scanalyzers . | . . . . . . . . . . . . . . . . . . . . . . . . . . . . . . . . . . . . Garrison Access 8 | . . . . . 1 . . . . . . . . . . . . . . 1 . 3 . . . . . . . . 1 1 . 1 . Total Hacks 475 | . 19 . 48 . 18 . 10 . 16 10 1 29 . 22 . 5 . . . 6 . 28 6 6 44 . 9 28 16 . 18 24 33 75 4 Successful 293 | . 11 . 48 . 11 . 4 . 11 10 1 29 . 13 . 4 . . . 4 . 20 6 6 44 . 5 12 7 . 6 6 10 23 2 Failed 182 | . 8 . . . 7 . 6 . 5 . . . . 9 . 1 . . . 2 . 8 . . . . 4 16 9 . 12 18 23 52 2 Catastrophic 44 | . . . . . . . 2 . 1 . . . . 2 . . . . . . . 2 . . . . 1 3 4 . 3 3 7 15 1 Database Lockouts . | . . . . . . . . . . . . . . . . . . . . . . . . . . . . . . . . . . . . Manual 194 | . 13 . . . 4 . 7 . 12 . . . . 5 . 3 4 . 1 2 . 13 . . . . 3 20 14 . 13 17 16 44 3 Terminals 241 | . 15 . . . 16 . 2 . 13 . . . . 7 . 4 . . . . . 18 . . . . 2 25 16 . 15 23 18 63 4 Fabricators 22 | . . . . . . . 3 . 1 . . . . 3 . . . . . . . 2 . . . . 3 . . . . . 10 . . Repair Stations 31 | . . . . . . . . . . . . . . 10 . . . . . 3 . 2 . . . . 4 2 . . . . . 10 . Recycling Units 21 | . 4 . . . . . 5 . 2 . . . . 2 . . . . . . . 2 . . . . . 1 . . . . 5 . . Scanalyzers . | . . . . . . . . . . . . . . . . . . . . . . . . . . . . . . . . . . . . Garrison Access 15 | . . . . . 2 . . . . . . . . . . . . . . 3 . 4 . . . . . . . . 3 1 . 2 . Terminal Hacks 197 | . 5 . 48 . 6 . . . 5 10 1 29 . 3 . 3 . . . . . 6 6 6 44 . . 5 3 . 2 2 1 11 1 Record 115 | . . . 48 . . . . . . 8 . 11 . . . 1 . . . . . . 5 4 36 . . . 1 . . . . 1 . Part Schematic 11 | . . . . . . . . . . . . 7 . . . . . . . . . . . . 4 . . . . . . . . . . Robot Schematic 8 | . . . . . . . . . . . . 8 . . . . . . . . . . . . . . . . . . . . . . . Robot Analysis 2 | . 2 . . . . . . . . . . . . . . . . . . . . . . . . . . . . . . . . . . Prototype ID Bank 12 | . 1 . . . 2 . . . 1 . . 3 . . . . . . . . . . . . 4 . . . . . . . . 1 . Open Door 9 | . . . . . . . . . . 2 1 . . . . 1 . . . . . . 1 2 . . . 1 . . . . . 1 . Branch Access Points 3 | . . . . . . . . . 1 . . . . 1 . . . . . . . 1 . . . . . . . . . . . . . Emergency Access Points 2 | . . . . . . . . . . . . . . 1 . . . . . . . . . . . . . . . . . . . 1 . Scanalyzer Index 1 | . . . . . . . . . 1 . . . . . . . . . . . . . . . . . . . . . . . . . . Alert Level 2 | . 1 . . . 1 . . . . . . . . . . . . . . . . . . . . . . . . . . . . . . Unreport Threat 16 | . . . . . . . . . 1 . . . . . . . . . . . . 2 . . . . . 2 2 . 1 2 1 4 1 Locate Traps 5 | . 1 . . . 1 . . . . . . . . 1 . . . . . . . 2 . . . . . . . . . . . . . Disarm Traps 3 | . . . . . . . . . . . . . . . . . . . . . . . . . . . . 2 . . 1 . . . . Patrol Status 1 | . . . . . 1 . . . . . . . . . . . . . . . . . . . . . . . . . . . . . . Recall Investigation 1 | . . . . . . . . . . . . . . . . . . . . . . . . . . . . . . . . . . 1 . Recall Reinforcements 1 | . . . . . . . . . . . . . . . . . . . . . . . . . . . . . . . . . . 1 . Recall Assault 1 | . . . . . . . . . . . . . . . . . . . . . . . . . . . . . . . . . . 1 . Zone Layout 4 | . . . . . 1 . . . 1 . . . . . . 1 . . . . . 1 . . . . . . . . . . . . . Fabricator Hacks 7 | . . . . . . . . . . . . . . 1 . . . . . . . 2 . . . . 2 . . . . . 2 . . Load Schematic 4 | . . . . . . . . . . . . . . 1 . . . . . . . 1 . . . . 1 . . . . . 1 . . Build 3 | . . . . . . . . . . . . . . . . . . . . . . 1 . . . . 1 . . . . . 1 . . Repair Station Hacks 16 | . . . . . . . . . . . . . . 5 . . . . . 2 . 2 . . . . 3 1 . . . . . 3 . Scan Component 11 | . . . . . . . . . . . . . . 3 . . . . . 1 . 1 . . . . 2 1 . . . . . 3 . Repair 5 | . . . . . . . . . . . . . . 2 . . . . . 1 . 1 . . . . 1 . . . . . . . . Recycling Unit Hacks 5 | . . . . . . . 1 . . . . . . 1 . . . . . . . . . . . . . 1 . . . . 2 . . Retrieve Components 5 | . . . . . . . 1 . . . . . . 1 . . . . . . . . . . . . . 1 . . . . 2 . . Scanalyzer . | . . . . . . . . . . . . . . . . . . . . . . . . . . . . . . . . . . . . Garrison Access Hacks 11 | . . . . . 2 . . . . . . . . . . . . . . 1 . 4 . . . . . . . . 1 1 . 2 . Unlock Access 1 | . . . . . 1 . . . . . . . . . . . . . . . . . . . . . . . . . . . . . . Seal Access 6 | . . . . . . . . . . . . . . . . . . . . . . 3 . . . . . . . . 1 1 . 1 . Coupler Status 4 | . . . . . 1 . . . . . . . . . . . . . . 1 . 1 . . . . . . . . . . . 1 . Unauthorized Hacks 173 | . 14 . . . 7 . 9 . 14 . . . . 6 . 2 . . . 3 . 15 . . . . 3 19 10 . 11 10 20 26 4 Terminals 47 | . 4 . . . 3 . . . 3 . . . . 3 . 1 . . . . . 6 . . . . . 5 4 . 3 3 4 7 1 Track 5 | . 1 . . . 1 . . . . . . . . 1 . . . . . . . 1 . . . . . . . . . . . 1 . Assimilate 2 | . . . . . . . . . . . . . . . . . . . . . . . . . . . . . . . . . 1 1 . Botnet 34 | . 2 . . . 2 . . . 3 . . . . 2 . . . . . . . 3 . . . . . 4 4 . 3 3 3 4 1 Disrupt 4 | . . . . . . . . . . . . . . . . . . . . . . 2 . . . . . 1 . . . . . 1 . Operators 1 | . 1 . . . . . . . . . . . . . . . . . . . . . . . . . . . . . . . . . . Sabotage 1 | . . . . . . . . . . . . . . . . 1 . . . . . . . . . . . . . . . . . . . Fabricators 2 | . . . . . . . . . 1 . . . . . . . . . . . . . . . . . . . . . . . 1 . . Haulers 2 | . . . . . . . . . 1 . . . . . . . . . . . . . . . . . . . . . . . 1 . . Repair Stations . | . . . . . . . . . . . . . . . . . . . . . . . . . . . . . . . . . . . . Recycling Units 7 | . 2 . . . . . 3 . 2 . . . . . . . . . . . . . . . . . . . . . . . . . . Tunnel 7 | . 2 . . . . . 3 . 2 . . . . . . . . . . . . . . . . . . . . . . . . . . Scanalyzers . | . . . . . . . . . . . . . . . . . . . . . . . . . . . . . . . . . . . . Garrison Access 1 | . . . . . . . . . . . . . . . . . . . . 1 . . . . . . . . . . . . . . . Eject 1 | . . . . . . . . . . . . . . . . . . . . 1 . . . . . . . . . . . . . . . Data Cores Recovered 1 | . . . . . . . . . . . . . . . . . . . . . . . . . . . . . . . 1 . . . . Used . | . . . . . . . . . . . . . . . . . . . . . . . . . . . . . . . . . . . . Hacking Detections 81 | . 4 . . . 4 . 3 . 5 . . . . 7 . 1 . . . 2 . 9 . . . . 3 10 5 . 6 4 6 11 1 Full Trace Events 8 | . 2 . . . . . 2 . . . . . . . . . . . . . . . . . . . . . . . . 1 1 2 . Feedback Events . | . . . . . . . . . . . . . . . . . . . . . . . . . . . . . . . . . . . . Feedback Blocked . | . . . . . . . . . . . . . . . . . . . . . . . . . . . . . . . . . . . . Robot Schematics Acquired 8 | . . . . . . . . . . . . 8 . . . . . . . . . . . . . . . . . . . . . . . Robots Built 2 | . . . . . . . . . . . . . . . . . . . . . . 2 . . . . . . . . . . . . . Matter 285 | . . . . . . . . . . . . . . . . . . . . . . 285 . . . . . . . . . . . . . Time 152 | . . . . . . . . . . . . . . . . . . . . . . 152 . . . . . . . . . . . . . Total Robot Build Rating 10 | . . . . . . . . . . . . . . . . . . . . . . 10 . . . . . . . . . . . . . Part Schematics Acquired 11 | . . . . . . . . . . . . 7 . . . . . . . . . . . . 4 . . . . . . . . . . Parts Built 2 | . . . . . . . . . . . . . . . . . . . . . . . . . . . 1 . . . . . 1 . . Matter 702 | . . . . . . . . . . . . . . . . . . . . . . . . . . . 351 . . . . . 351 . . Time 249 | . . . . . . . . . . . . . . . . . . . . . . . . . . . 187 . . . . . 62 . . Total Part Build Rating 14 | . . . . . . . . . . . . . . . . . . . . . . . . . . . 7 . . . . . 7 . . Parts Repaired 5 | . . . . . . . . . . . . . . 2 . . . . . 1 . 1 . . . . 1 . . . . . . . . Time 123 | . . . . . . . . . . . . . . 41 . . . . . 40 . 10 . . . . 32 . . . . . . . . Parts Recycled . | . . . . . . . . . . . . . . . . . . . . . . . . . . . . . . . . . . . . Recycled Matter . | . . . . . . . . . . . . . . . . . . . . . . . . . . . . . . . . . . . . Retrieved Matter . | . . . . . . . . . . . . . . . . . . . . . . . . . . . . . . . . . . . . Retrieved Components 6 | . . . . . . . 1 . . . . . . 2 . . . . . . . . . . . . . 2 . . . . 1 . . Parts Scanalyzed . | . . . . . . . . . . . . . . . . . . . . . . . . . . . . . . . . . . . . Part Schematics Acquired . | . . . . . . . . . . . . . . . . . . . . . . . . . . . . . . . . . . . . Parts Damaged . | . . . . . . . . . . . . . . . . . . . . . . . . . . . . . . . . . . . . Bothacking | -11 -10 -10 -10 -9 -8 -8 -7 -7 -7 -7 -7 -7 -6 -6 -6 -6 -6 -6 -5 -5 -5 -5 -5 -5 -5 -4 -4 -4 -4 -4 -4 -3 -2 -2 -2 ------------ Run | Scr Mat Min Exi Min Mat Gar Fac Was Fac Low Low Dat Pro Fac Low Low Zio Dee Pro Fac Was Fac Upp Upp Zhi Pro Fac Ext Cet Arc Hub Res Res Qua Sec Used RIF Installer 1 | . . . . . . 1 . . . . . . . . . . . . . . . . . . . . . . . . . . . . . Robots Hacked 15 | . . . . . . . 4 5 1 . . 1 . 1 . . . . . . . 1 . . 1 . . . . . . . . 1 . Non-combat 1 | . . . . . . . 1 . . . . . . . . . . . . . . . . . . . . . . . . . . . . Combat 14 | . . . . . . . 3 5 1 . . 1 . 1 . . . . . . . 1 . . 1 . . . . . . . . 1 . Robot Hacks Applied 17 | . . . . . . . 4 7 1 . . 1 . 1 . . . . . . . 1 . . 1 . . . . . . . . 1 . parse_system 5 | . . . . . . . . 2 . . . 1 . 1 . . . . . . . . . . 1 . . . . . . . . . . find_chute 1 | . . . . . . . 1 . . . . . . . . . . . . . . . . . . . . . . . . . . . . locate_prototypes 1 | . . . . . . . . . . . . . . . . . . . . . . . . . . . . . . . . . . 1 . ignore_targets 5 | . . . . . . . . 5 . . . . . . . . . . . . . . . . . . . . . . . . . . . overwrite_iff 2 | . . . . . . . 2 . . . . . . . . . . . . . . . . . . . . . . . . . . . . formatsys_high 3 | . . . . . . . 1 . 1 . . . . . . . . . . . . 1 . . . . . . . . . . . . . Relay Couplers Released 18 | . . . . . . 10 . . . . . . . . . . . . . 4 . . . . . . . . . . 2 2 . . . Ejected 4 | . . . . . . . . . . . . . . . . . . . . 4 . . . . . . . . . . . . . . . Machine Destruction 14 | . . . . . . 10 . . . . . . . . . . . . . . . . . . . . . . . . 2 2 . . . Attached 7 | . . . . . . . 1 1 1 . . . . . . . . . . 1 . 1 . . . . . . . . . . . 2 . Robots Rewired 19 | . . . . . . . . . . . . . 2 . . . . . . . . . . . . . . 17 . . . . . . . Allies Hacked 3 | . . . . . . . . . 1 . . . . . . . . . . . . 1 . 1 . . . . . . . . . . . Hacks Repelled . | . . . . . . . . . . . . . . . . . . . . . . . . . . . . . . . . . . . . Allies | -11 -10 -10 -10 -9 -8 -8 -7 -7 -7 -7 -7 -7 -6 -6 -6 -6 -6 -6 -5 -5 -5 -5 -5 -5 -5 -4 -4 -4 -4 -4 -4 -3 -2 -2 -2 -------- Run | Scr Mat Min Exi Min Mat Gar Fac Was Fac Low Low Dat Pro Fac Low Low Zio Dee Pro Fac Was Fac Upp Upp Zhi Pro Fac Ext Cet Arc Hub Res Res Qua Sec Total Allies 78 | . . . . . . . 3 19 1 . . . 2 . . . . . . . 19 3 . . . . . 24 5 . . . 1 1 . Largest Group 19 | . . . . . . . 2 19 19 3 . . 2 . . . . . . . 19 17 2 2 1 1 . 14 10 8 7 . 1 1 . Highest-Rated Group 769 | . . . . . . . 45 477 477 93 . . 50 . . . . . . . 714 614 78 78 41 41 . 655 769 650 508 . 26 40 . Highest-Rated Ally 143 | . . . . . . . 29 35 35 32 . . 30 . . . . . . . 50 54 41 41 41 41 . 143 137 137 94 . 26 40 . Total Orders 99 | . . . . . . . 2 . . . . . 2 21 14 14 . . . . . 9 11 4 . 4 . . . . 1 7 4 6 . STAY 9 | . . . . . . . . . . . . . . . 1 . . . . . . . 4 2 . 1 . . . . . 1 . . . GOTO 46 | . . . . . . . 1 . . . . . 1 12 8 10 . . . . . 7 3 . . 1 . . . . 1 2 . . . FOLLOW 22 | . . . . . . . . . . . . . 1 3 5 2 . . . . . 2 4 2 . 2 . . . . . 1 . . . EXPLORE 7 | . . . . . . . 1 . . . . . . 4 . 2 . . . . . . . . . . . . . . . . . . . RETURN 15 | . . . . . . . . . . . . . . 2 . . . . . . . . . . . . . . . . . 3 4 6 . Ally Attacks 806 | . . . . . . . 9 12 248 4 . . 7 . . . . . . . . 226 10 18 . . . 101 15 12 89 8 15 32 . Total Damage 17285 | . . . . . . . 96 348 3931 149 . . 242 . . . . . . . . 4199 309 513 . . . 2772 439 440 2798 188 263 598 . Kills 108 | . . . . . . . . 1 32 1 . . 2 . . . . . . . . 29 1 5 . . . 17 3 1 12 1 1 2 . Allies Corrupted 7 | . . . . . . . . . 1 . . . . 2 . . . . . . . 4 . . . . . . . . . . . . . Allies Melted . | . . . . . . . . . . . . . . . . . . . . . . . . . . . . . . . . . . . . Turrets Deployed 1 | . . . . . . . . . . . . . . . . . . . . . . . . . . . . . . . . 1 . . . Intel | -11 -10 -10 -10 -9 -8 -8 -7 -7 -7 -7 -7 -7 -6 -6 -6 -6 -6 -6 -5 -5 -5 -5 -5 -5 -5 -4 -4 -4 -4 -4 -4 -3 -2 -2 -2 ------- Run | Scr Mat Min Exi Min Mat Gar Fac Was Fac Low Low Dat Pro Fac Low Low Zio Dee Pro Fac Was Fac Upp Upp Zhi Pro Fac Ext Cet Arc Hub Res Res Qua Sec Robot Analysis Total 117 | . 2 . . . . . . . . . . 115 . . . . . . . . . . . . . . . . . . . . . . . Derelict Logs Recovered 15 | . . 1 . 2 . . . . . . 1 . 1 . 1 1 1 . 1 . . . 2 2 . 2 . . . . . . . . . Drone Launches 34 | . . . . . . . 2 . . . . . . 12 . . . . . . . . . . . . . . . . . 4 6 10 . Drone Recoveries 17 | . . . . . . . . . . . . . . . . . . . . . . . . . . . . . . . . 2 6 9 . Exploration | -11 -10 -10 -10 -9 -8 -8 -7 -7 -7 -7 -7 -7 -6 -6 -6 -6 -6 -6 -5 -5 -5 -5 -5 -5 -5 -4 -4 -4 -4 -4 -4 -3 -2 -2 -2 ------------- Run | Scr Mat Min Exi Min Mat Gar Fac Was Fac Low Low Dat Pro Fac Low Low Zio Dee Pro Fac Was Fac Upp Upp Zhi Pro Fac Ext Cet Arc Hub Res Res Qua Sec Turns Passed 56685 | 78 880 1195 328 935 1116 1467 1516 985 1274 2988 2370 294 1238 1970 1338 1900 15283 3076 1298 476 517 1802 1691 2034 315 1169 842 1467 235 1200 877 1080 630 729 92 Spaces Moved 27058 | 42 387 697 639 842 425 758 712 399 640 1328 1222 143 546 1047 771 1115 2961 1978 816 170 353 901 1246 1474 226 710 365 1157 180 129 632 740 418 788 101 Core 1099 | 4 . 36 639 335 . . . . . . . . . . . . . . . . . . . . . . . . . . . . . 7 78 Treads 6631 | 38 387 395 . 101 179 758 508 370 640 1328 1222 143 528 9 . . . . . . . . . . . . . . . . . . . 25 . Legs 224 | . . . . . 224 . . . . . . . . . . . . . . . . . . . . . . . . . . . . . . Wheels 14891 | . . 266 . 310 22 . 204 29 . . . . 18 1038 771 1115 2961 1978 816 170 353 901 1246 1474 226 710 283 . . . . . . . . Hover 4117 | . . . . . . . . . . . . . . . . . . . . . . . . . . . 82 1157 180 129 632 740 418 756 23 Flight 96 | . . . . 96 . . . . . . . . . . . . . . . . . . . . . . . . . . . . . . . Fastest Speed 17 | 50 160 50 50 45 110 175 125 135 185 185 185 185 140 116 160 160 140 130 140 123 123 123 123 123 123 123 80 80 80 80 80 76 26 17 50 Average Speed 136 | 149 174 154 50 93 167 175 161 181 185 185 185 185 182 135 160 160 158 133 140 132 123 123 123 125 132 147 130 80 80 80 81 77 75 54 52 Slowest Speed 300 | 160 180 200 50 180 180 175 175 185 185 185 185 185 200 280 160 160 170 140 140 133 133 133 123 133 133 170 170 80 80 80 192 142 84 300 60 Overloaded Moves 28 | . . . . . . . . . . . . . . . . . . . . . . . . . . . . . . . . . . 28 . Propulsion Burnouts . | . . . . . . . . . . . . . . . . . . . . . . . . . . . . . . . . . . . . Robots Hopped 2 | . . . . 2 . . . . . . . . . . . . . . . . . . . . . . . . . . . . . . . Cave-ins Triggered . | . . . . . . . . . . . . . . . . . . . . . . . . . . . . . . . . . . . . Exploration Rate (%) 65 | 4 71 77 90 98 49 77 22 96 30 99 98 77 86 23 82 99 91 89 81 5 95 28 94 99 62 77 9 89 80 88 69 29 20 68 10 Regions Visited 35 Branch Regions 22 Pre-discovered Areas 32 | . 2 . 1 1 . . 3 . 2 1 . 16 . . 1 1 . . . . . . . 1 3 . . . . . . . . . . Known Exits Taken 22 | . . . 1 . 1 . . . 1 . . . 1 1 1 1 1 1 1 . . 1 1 1 1 1 1 1 1 1 1 1 1 . . Unknown Exits Taken 8 | 1 1 1 . 1 . . . . . 1 1 1 . . . . . . . . . . . . . . . . . . . . . 1 . Scrap Searched 33 | . . 1 . 2 . . . . . 1 5 . 4 . 2 3 5 . 1 . . . 3 4 . 2 . . . . . . . . . Spaces Dug 778 | . . 42 . 50 . . 12 2 3 12 77 . 2 3 4 6 . 4 29 9 . 28 . 5 . 74 . 22 . . 339 31 11 13 . Terrain Destroyed 2048 | . 3 51 . 103 18 22 94 2 3 45 160 18 141 11 39 29 . 7 29 20 1 45 . 10 . 136 47 104 . . 714 43 82 71 . Melee 18 | . . . . . . . 2 . 3 . 5 . 2 3 . 1 . . . . . . . . . . . . . . . . . 2 . Projectile 247 | . . . . . 7 . 17 2 . 4 1 . 9 8 23 7 . 7 29 12 1 45 . 10 . 11 . 5 . . 14 11 12 12 . AOE 1783 | . 3 51 . 103 11 22 75 . . 41 154 18 130 . 16 21 . . . 8 . . . . . 125 47 99 . . 700 32 70 57 . Actions | -11 -10 -10 -10 -9 -8 -8 -7 -7 -7 -7 -7 -7 -6 -6 -6 -6 -6 -6 -5 -5 -5 -5 -5 -5 -5 -4 -4 -4 -4 -4 -4 -3 -2 -2 -2 --------- Run | Scr Mat Min Exi Min Mat Gar Fac Was Fac Low Low Dat Pro Fac Low Low Zio Dee Pro Fac Was Fac Upp Upp Zhi Pro Fac Ext Cet Arc Hub Res Res Qua Sec Total 44906 | 54 494 757 647 947 732 835 914 563 698 1832 1287 170 679 1456 836 1209 13531 2342 943 391 396 1501 1391 1618 241 806 694 1608 240 1216 896 1114 677 1055 136 Wait 14238 | . 16 . . 39 166 . 14 9 4 474 15 . 21 155 19 69 10290 239 104 189 11 392 130 57 3 30 214 229 20 1074 48 22 83 74 28 Move 27021 | 41 386 696 638 837 425 756 712 398 639 1327 1221 142 545 1046 770 1114 2960 1977 815 170 352 900 1245 1473 225 709 364 1156 179 128 631 739 417 787 101 Hop 2 | . . . . 2 . . . . . . . . . . . . . . . . . . . . . . . . . . . . . . . Pick Up 396 | 6 19 8 3 13 26 8 26 10 10 8 3 1 6 47 2 1 24 18 1 4 2 41 1 2 2 1 14 20 . . 14 33 7 15 . Fast Attach 173 | 6 2 . 2 8 8 . 11 5 4 . . . 4 6 1 . 12 8 . 2 . 4 . 11 3 7 15 11 1 1 6 21 3 10 1 Attach 297 | . . 7 1 3 9 3 9 2 1 . 1 1 12 18 . . 11 9 . 3 1 27 . 6 1 9 15 21 1 . 12 41 34 38 1 Detach 141 | . 1 . . 2 4 . 1 4 1 . . 1 1 2 1 . 3 6 . 2 1 7 . 5 1 7 8 7 1 . 6 20 22 26 1 Swap 254 | . 7 5 . 3 11 12 23 11 8 8 19 5 20 23 2 5 3 3 . . 2 12 1 4 . 5 6 8 7 2 13 10 6 10 . Drop 454 | . 11 5 3 7 21 3 17 17 11 1 3 8 4 39 3 1 34 30 1 2 2 42 1 12 4 8 25 30 4 2 19 42 11 31 . Fire 1809 | . 50 30 . 29 53 47 79 107 11 14 16 4 64 108 38 18 194 52 22 19 25 76 13 48 1 30 33 114 27 9 147 175 94 60 2 Melee 33 | . . . . . . . 6 . 6 . 9 1 2 6 . 1 . . . . . . . . . . . . . . . . . 2 . Ram 5 | . . 1 . 2 . . . . . . . . . . . . . . . . . . . . . . . . . . . . . . 2 Kick . | . . . . . . . . . . . . . . . . . . . . . . . . . . . . . . . . . . . . Crush 38 | 1 2 5 . 2 9 . 14 . 3 . . . . . . . . . . . . . . . . . . . . . . . . 2 . Escape Stasis 26 | . . . . . . 6 . . . . . . . . . . . . . . . . . . . . . 11 . . . 9 . . . Rewire 2 | . . . . . . . 1 . . . . . . . . . . . . . . . . . . . . 1 . . . . . . . Trap 8 | . . . . . . . . . . . . 7 . . . . . . . . . . . . 1 . . . . . . . . . . Miscellaneous 9 | . . . . . . . 1 . . . . . . 6 . . . . . . . . . . . . . . . . . 2 . . . Route ------- -11/Scrapyard -10/Materials (discovered 2 exits: [*Mat] / [*Min]) -10/Mines (discovered 2 exits: [*Mat] / *Exi) -10/Exiles (discovered 2 exits: *Min x2) -9/Mines (discovered 2 exits: *Mat x2) -8/Materials (discovered 3 exits: *Fac x2 / Gar) -8/Garrison (discovered 3 exits: *Fac x3) -7/Factory -7/Waste -7/Factory (discovered 3 exits: *Fac / *Low x2) -7/Lower Caves -7/Lower Caves (discovered 2 exits: *Fac / *Dat) -7/Data Miner -6/Proximity Caves -6/Factory (discovered 4 exits: *Fac x2 / *Low x2) -6/Lower Caves -6/Lower Caves (discovered 2 exits: *Fac / *Zio) -6/Zion (discovered 2 exits: *Dee / *Pro) -6/Deep Caves -5/Proximity Caves -5/Factory (discovered 2 exits: Fac x2) -5/Waste -5/Factory (discovered 2 exits: *Upp x2) -5/Upper Caves -5/Upper Caves (discovered 2 exits: *Fac / *Zhi) -5/Zhirov -4/Proximity Caves -4/Factory (discovered 3 exits: Upp / *Ext x2) -4/Extension (discovered 3 exits: *Res x2 / *Cet) -4/Cetus (discovered 2 exits: *Res / *Arc) -4/Archives (discovered 3 exits: *Res / *Hub x2) -4/Hub_04(d) (discovered 4 exits: *Res x4) -3/Research -2/Research -2/Quarantine -2/Section 7 History --------- Turn | Location | Event 16 | -11/Scrapyard | Discovered new exit (range 15) 79 | -11/Scrapyard | Entered Materials 313 | -10/Materials | Build established: Mutant 597 | -10/Materials | Discovered new exit (range 8) 909 | -10/Materials | Discovered new exit (range 10) 959 | -10/Materials | Entered Mines 966 | -10/Mines | Met a Derelict bent on vengeance 1279 | -10/Mines | Discovered new exit (range 7) 1288 | -10/Mines | Received a Rocket Launcher from a helpful Derelict 1441 | -10/Mines | Deemed a non-threat by the Exiles lab entrance 1442 | -10/Mines | Discovered new exit (range 5) 1749 | -10/Mines | Lost 4 parts (2n2w) 1979 | -10/Mines | Assembled infested the area 2026 | -10/Mines | Met 8R-AWN 2154 | -10/Mines | Entered Exiles 2155 | -10/Exiles | Identified exit to Mines 2166 | -10/Exiles | Lost 6 parts (2p2n2w) 2177 | -10/Exiles | Welcomed by 8R-AWN 2186 | -10/Exiles | Met EX-HEX 2214 | -10/Exiles | Met EX-DEC 2223 | -10/Exiles | Visited The Gauntlet 2277 | -10/Exiles | Learned location of Zion (-6) 2288 | -10/Exiles | Met EX-BIN 2458 | -10/Exiles | Learned about 8R-AWN's background 2482 | -10/Exiles | Entered Mines 2506 | -9/Mines | Discovered new exit (range 9) 2575 | -9/Mines | Discovered new exit (range 7) 2595 | -9/Mines | Assisted by bots powering up and referring to "LRC-V3" 2603 | -9/Mines | Learned location of Recycling (-9) 2633 | -9/Mines | Core integrity fell below 50% 2828 | -9/Mines | Learned Materials security intel 3223 | -9/Mines | Build established: Scavenger-Mutant 3379 | -9/Mines | Destroyed YI-UF0 3394 | -9/Mines | Found Prototype Launcher 3394 | -9/Mines | Identified YI-UF0's Doublenader 3417 | -9/Mines | Entered Materials 3417 | -8/Materials | Evolved 4 slots: Propulsion x1, Utility x3 3892 | -8/Materials | Discovered new exit (range 16) 4348 | -8/Materials | Discovered new exit (range 15) 4533 | -8/Materials | Identified exit to Garrison 4533 | -8/Materials | Entered Garrison 4639 | -8/Garrison | Triggered checkpoint 4747 | -8/Garrison | Discovered new exit (range 10) 4852 | -8/Garrison | Triggered checkpoint 4878 | -8/Garrison | Triggered checkpoint 4934 | -8/Garrison | Triggered checkpoint 4954 | -8/Garrison | Discovered new exit (range 14) 5108 | -8/Garrison | Discovered new exit (range 15) 5143 | -8/Garrison | Installed Relay Interface Framework 5293 | -8/Garrison | Garrison Relay disabled 5541 | -8/Garrison | Garrison Relay disabled 5662 | -8/Garrison | Triggered checkpoint 5707 | -8/Garrison | Garrison Relay disabled 5718 | -8/Garrison | Lost 3 parts (2u1w) 6000 | -8/Garrison | Entered Factory 6000 | -7/Factory | Evolved 2 slots: Utility x2 6414 | -7/Factory | Build established: Bothacker-Mutant 7039 | -7/Factory | Destroyed 11 combat bots 7188 | -7/Factory | Lost 3 parts (2n1u) 7190 | -7/Factory | Build established: Hauler-Mutant 7516 | -7/Factory | Sucked down chute 7516 | -7/Factory | Entered Waste 7522 | -7/Waste | Found Prototype Processor 7530 | -7/Waste | Spotted C-40 Crusher 7531 | -7/Waste | Spotted C-40 Crusher 7553 | -7/Waste | Spotted C-40 Crusher 7589 | -7/Waste | Destroyed C-40 Crusher 7591 | -7/Waste | Destroyed C-40 Crusher 7603 | -7/Waste | Spotted C-40 Crusher 7610 | -7/Waste | Destroyed C-40 Crusher 7857 | -7/Waste | Spotted C-40 Crusher 7869 | -7/Waste | Destroyed C-40 Crusher 7875 | -7/Waste | Destroyed C-40 Crusher 7898 | -7/Waste | Found Damper Plating 7948 | -7/Waste | Found Damper Plating 7951 | -7/Waste | Found Damper Plating 7977 | -7/Waste | Warlord forces began an assault 8005 | -7/Waste | Allies destroyed C-40 Crusher 8142 | -7/Waste | Discovered new exit (range 12) 8501 | -7/Waste | Entered Factory 8501 | -7/Factory | Accompanied by 19 allies 9375 | -7/Factory | Identified exit to Lower Caves 9572 | -7/Factory | Discovered new exit (range 12) 9775 | -7/Factory | Entered Lower Caves 9775 | -7/Lower Caves | Accompanied by 3 allies 10405 | -7/Lower Caves | Learned location of 1 exit from Factory 10405 | -7/Lower Caves | Learned Research emergency access door positions 10405 | -7/Lower Caves | Learned Factory stockpile data 10405 | -7/Lower Caves | Learned Extension stockpile data 10856 | -7/Lower Caves | Encountered a Warlord checkpoint 10925 | -7/Lower Caves | Discovered new exit (range 11) 12763 | -7/Lower Caves | Entered another Lower Caves area 13091 | -7/Lower Caves | Discovered new exit (range 10) 13980 | -7/Lower Caves | Discovered new exit (range 15) 14010 | -7/Lower Caves | Learned location of 1 exit from Proximity Caves 14507 | -7/Lower Caves | Ambushed by wild Derelicts 15133 | -7/Lower Caves | Entered Data Miner 15135 | -7/Data Miner | Discovered new exit (range 6) 15170 | -7/Data Miner | Met Data Miner 15206 | -7/Data Miner | Learned location of Section 7 (-2) 15206 | -7/Data Miner | Acquired the access code to Warlord's prototype stash 15234 | -7/Data Miner | Received God Mode back door access code from Data Miner 15332 | -7/Data Miner | Interfaced with the Data Conduit 15332 | -7/Data Miner | Identified Exp. Signal Interpreter 15427 | -7/Data Miner | Entered Proximity Caves 15428 | -6/Proximity Caves | Identified exit to Factory 15658 | -6/Proximity Caves | Attracted the attention of an 0b10 checkpoint 15760 | -6/Proximity Caves | Lost 4 parts (1p1n1u1w) 15899 | -6/Proximity Caves | Core integrity fell below 50% 15903 | -6/Proximity Caves | Attracted the attention of an 0b10 outpost 15942 | -6/Proximity Caves | Lost 4 parts (1n1u2w) 15953 | -6/Proximity Caves | Destroyed 13 combat bots 16042 | -6/Proximity Caves | Learned 8 Factory zone layouts 16286 | -6/Proximity Caves | Spotted B-75 Beast 16665 | -6/Proximity Caves | Entered Factory 16665 | -6/Factory | Evolved 2 slots: Power x1, Utility x1 16666 | -6/Factory | Identified exit to Factory 16669 | -6/Factory | Loaded intel: 223 machine locations 16723 | -6/Factory | Identified exit to Lower Caves 16809 | -6/Factory | Repaired Hvy. Treads 16956 | -6/Factory | Repaired Hcp. Storage Unit 17521 | -6/Factory | Intercept squad dispatched 17539 | -6/Factory | Spotted Tracker 17563 | -6/Factory | Destroyed Tracker 17575 | -6/Factory | Found Exp. Phase Shifter 17581 | -6/Factory | Found Prototype Energy Gun 17581 | -6/Factory | Identified Immobilizer 17624 | -6/Factory | Spotted Combat Programmer 17676 | -6/Factory | Destroyed Combat Programmer 18364 | -6/Factory | Intercept squad dispatched 18381 | -6/Factory | Spotted Tracker 18382 | -6/Factory | Spotted Tracker 18395 | -6/Factory | Destroyed Tracker 18410 | -6/Factory | Destroyed Tracker 18448 | -6/Factory | Spotted Combat Programmer 18463 | -6/Factory | Destroyed Combat Programmer 18471 | -6/Factory | Spotted Combat Programmer 18487 | -6/Factory | Destroyed Combat Programmer 18521 | -6/Factory | Found EMDS 18536 | -6/Factory | Found Exp. Remote Datajack 18550 | -6/Factory | Found Exp. Target Analyzer 18635 | -6/Factory | Entered Lower Caves 18635 | -6/Lower Caves | Accompanied by 1 ally 18740 | -6/Lower Caves | Encountered a Warlord checkpoint 19921 | -6/Lower Caves | Discovered new exit (range 3) 19971 | -6/Lower Caves | Identified exit to Lower Caves 19973 | -6/Lower Caves | Entered another Lower Caves area 19973 | -6/Lower Caves | Accompanied by 1 ally 20264 | -6/Lower Caves | Discovered exit to Factory (range 13) 21014 | -6/Lower Caves | Discovered new exit (range 19) 21871 | -6/Lower Caves | Identified exit to Zion 21873 | -6/Lower Caves | Entered Zion 21891 | -6/Zion | Acquired unknown access codes intercepted by a Zionite 22145 | -6/Zion | Discovered new exit (range 8) 22155 | -6/Zion | Identified exit to Proximity Caves 32778 | -6/Zion | RIF detected upon attempting to enter Zion 32778 | -6/Zion | Attacked by Zionites 32828 | -6/Zion | AD-0RF came to Zion's defense 32841 | -6/Zion | Destroyed AD-0RF 32867 | -6/Zion | Found Prototype Special Weapon 32867 | -6/Zion | Identified AD-0RF's Magmablaster 33042 | -6/Zion | Found Prototype Energy Gun 33045 | -6/Zion | Identified Storm Laser 33481 | -6/Zion | Destroyed Imprinter 33491 | -6/Zion | Extracted access codes from Imprinter's data core 34152 | -6/Zion | Learned location of 2 exits from Factory 34492 | -6/Zion | Found Prototype Device 34492 | -6/Zion | Identified Bomb Factory No. 2 35699 | -6/Zion | Opened final containment barrier to the Deep Caves 35723 | -6/Zion | Discovered new exit (range 5) 35726 | -6/Zion | Saw the warning signs outside the Deep Caves entrance 35762 | -6/Zion | Identified exit to Deep Caves 36895 | -6/Zion | Found Relay Coupler [Programmer] 37156 | -6/Zion | Entered Deep Caves 37430 | -6/Deep Caves | Z-Facility disabled 37917 | -6/Deep Caves | Discovered new exit (range 7) 39100 | -6/Deep Caves | Spotted as-37985 39123 | -6/Deep Caves | Destroyed as-37985 39195 | -6/Deep Caves | Found Deploy-a-Sentry 39277 | -6/Deep Caves | Exposed GOLEM chamber 39280 | -6/Deep Caves | Found GOLEM Unit 39913 | -6/Deep Caves | Identified exit to Proximity Caves 40232 | -6/Deep Caves | Entered Proximity Caves 40566 | -5/Proximity Caves | Acquired the password to a Derelict Tinkerer's latest research 40578 | -5/Proximity Caves | Found Prototype Special Weapon 40974 | -5/Proximity Caves | Discovered exit to Factory (range 14) 41019 | -5/Proximity Caves | Learned Factory stockpile data 41208 | -5/Proximity Caves | Received a Behemoth hack from an annoying Tinkerer 41530 | -5/Proximity Caves | Entered Factory 41530 | -5/Factory | Evolved 2 slots: Propulsion x1, Utility x1 41531 | -5/Factory | Identified exit to Factory 41533 | -5/Factory | Loaded intel: 247 machine locations 41739 | -5/Factory | Repaired Exp. Signal Interpreter? 41980 | -5/Factory | Garrison activated, responded to threat 42006 | -5/Factory | Sucked down chute 42006 | -5/Factory | Entered Waste 42039 | -5/Waste | Spotted C-40 Crusher 42047 | -5/Waste | Destroyed C-40 Crusher 42057 | -5/Waste | Destroyed C-40 Crusher 42059 | -5/Waste | Spotted C-40 Crusher 42067 | -5/Waste | Destroyed C-40 Crusher 42075 | -5/Waste | Spotted C-40 Crusher 42085 | -5/Waste | Destroyed C-40 Crusher 42092 | -5/Waste | Spotted C-40 Crusher 42099 | -5/Waste | Destroyed C-40 Crusher 42102 | -5/Waste | Spotted C-40 Crusher 42110 | -5/Waste | Destroyed C-40 Crusher 42120 | -5/Waste | Found Damper Plating 42172 | -5/Waste | Discovered new exit (range 11) 42183 | -5/Waste | Identified exit to Factory 42227 | -5/Waste | Warlord forces began an assault 42523 | -5/Waste | Entered Factory 42523 | -5/Factory | Accompanied by 17 allies 42524 | -5/Factory | Loaded intel: 271 machine locations 42770 | -5/Factory | Garrison activated, responded to threat 42840 | -5/Factory | Identified exit to Upper Caves 42859 | -5/Factory | Intercept squad dispatched 42864 | -5/Factory | Spotted Tracker 42898 | -5/Factory | Found Exp. Targeting Computer 42935 | -5/Factory | Spotted Combat Programmer 42955 | -5/Factory | Combat Programmer assimilated allied J6-8Y3(m) 42961 | -5/Factory | Combat Programmer assimilated allied 2V-176(s) 42964 | -5/Factory | Allies destroyed Combat Programmer 42972 | -5/Factory | Found EMDS 43018 | -5/Factory | Found Exp. Signal Interpreter 43527 | -5/Factory | Repaired Arm. Wheel 43711 | -5/Factory | Fabricated H-66 Slayer (x2) 43834 | -5/Factory | Intercept squad dispatched 43849 | -5/Factory | Spotted Tracker 43849 | -5/Factory | Spotted Tracker 43852 | -5/Factory | Allies destroyed Tracker 43856 | -5/Factory | Allies destroyed Tracker 43903 | -5/Factory | Spotted Combat Programmer 43904 | -5/Factory | Spotted Combat Programmer 43914 | -5/Factory | Identified Molecular Deconstructor 43933 | -5/Factory | Destroyed Combat Programmer 43958 | -5/Factory | Destroyed Combat Programmer 43972 | -5/Factory | Found EMDS 43977 | -5/Factory | Found EMDS 43998 | -5/Factory | Found Exp. Focal Shield 44325 | -5/Factory | Entered Upper Caves 44325 | -5/Upper Caves | Accompanied by 2 allies 44520 | -5/Upper Caves | Learned Factory emergency access door positions 44738 | -5/Upper Caves | Learned Factory interactive machine intel 44999 | -5/Upper Caves | Learned Factory security intel 44999 | -5/Upper Caves | Learned Research security intel 45773 | -5/Upper Caves | Discovered new exit (range 16) 45807 | -5/Upper Caves | Identified exit to Upper Caves 46016 | -5/Upper Caves | Entered another Upper Caves area 46016 | -5/Upper Caves | Accompanied by 2 allies 46526 | -5/Upper Caves | Attracted the attention of an 0b10 checkpoint 46712 | -5/Upper Caves | Learned 12 Factory zone layouts 47091 | -5/Upper Caves | Discovered new exit (range 9) 47140 | -5/Upper Caves | Learned Research stockpile data 47140 | -5/Upper Caves | Learned Factory security intel 47140 | -5/Upper Caves | Learned Armory garrison access intel 47381 | -5/Upper Caves | Found Alien Artifact 47381 | -5/Upper Caves | Identified Core Expander 47381 | -5/Upper Caves | Installed Core Expander, added new Utility slot 47827 | -5/Upper Caves | Identified exit to Zhirov 48050 | -5/Upper Caves | Entered Zhirov 48050 | -5/Zhirov | Accompanied by 1 ally 48050 | -5/Zhirov | Discovered new exit (range 3) 48052 | -5/Zhirov | Identified exit to Proximity Caves 48074 | -5/Zhirov | Met Zhirov 48124 | -5/Zhirov | Zhirov requested help retrieving the SGEMP Prototype 48144 | -5/Zhirov | Found Alien Artifact 48144 | -5/Zhirov | Identified Integrated Dissipator 48144 | -5/Zhirov | Installed Integrated Dissipator, increased core heat dissipation (+2%) 48242 | -5/Zhirov | Found Alien Artifact 48365 | -5/Zhirov | Entered Proximity Caves 48365 | -4/Proximity Caves | Accompanied by 1 ally 49263 | -4/Proximity Caves | Learned Research stockpile data 49504 | -4/Proximity Caves | Learned Research stockpile data 49534 | -4/Proximity Caves | Entered Factory 49534 | -4/Factory | Evolved 2 slots: Propulsion x2 49535 | -4/Factory | Identified exit to Upper Caves 49535 | -4/Factory | Identified exit to Extension 49538 | -4/Factory | Loaded intel: 282 machine locations 49539 | -4/Factory | Loaded intel: 47 interactive machine locations 49643 | -4/Factory | Repaired Arm. Wheel 49783 | -4/Factory | Fabricated Assault Drone Bay (x1) 49828 | -4/Factory | Discovered exit to Extension (range 5) 49935 | -4/Factory | Local fabrication network quarantined 50132 | -4/Factory | Intercept squad dispatched 50150 | -4/Factory | Spotted Tracker 50152 | -4/Factory | Destroyed Tracker 50224 | -4/Factory | Spotted Combat Programmer 50250 | -4/Factory | Destroyed Combat Programmer 50278 | -4/Factory | Found EMDS 50376 | -4/Factory | Entered Extension 50377 | -4/Extension | Loaded intel: 34 machine locations 50552 | -4/Extension | Build established: Scavenger-Mutant 50791 | -4/Extension | Rescued a captive Derelict 50867 | -4/Extension | Rescued a captive Derelict 50870 | -4/Extension | Rescued a captive Derelict 50923 | -4/Extension | Rescued a captive Derelict 51092 | -4/Extension | Spotted B-86 Titan 51100 | -4/Extension | Allies destroyed B-86 Titan 51107 | -4/Extension | Spotted B-86 Titan 51125 | -4/Extension | Destroyed B-86 Titan 51134 | -4/Extension | Discovered new exit (range 3) 51134 | -4/Extension | Identified exit to Research 51245 | -4/Extension | Energy Cycler disabled 51245 | -4/Extension | Rescued a captive Derelict 51248 | -4/Extension | Rescued a captive Derelict 51297 | -4/Extension | Rescued A7 51464 | -4/Extension | Discovered exit to Research (range 10) 51465 | -4/Extension | Discovered new exit (range 6) 51726 | -4/Extension | Disrupted transfer network 51747 | -4/Extension | Disrupted transfer network 51776 | -4/Extension | Destroyed 7 combat bots 51779 | -4/Extension | Identified exit to Cetus 51843 | -4/Extension | Entered Cetus 51843 | -4/Cetus | Accompanied by 6 allies 51844 | -4/Cetus | Loaded intel: 24 machine locations 51848 | -4/Cetus | Acquired a Cetus Manufacturing Module code from A7 51863 | -4/Cetus | Spotted Cetus Guard 51864 | -4/Cetus | Spotted Cetus Guard 51864 | -4/Cetus | Allies destroyed Cetus Guard 51867 | -4/Cetus | Allies destroyed Cetus Guard 51867 | -4/Cetus | Spotted Cetus Guard 51869 | -4/Cetus | Destroyed Cetus Guard 51928 | -4/Cetus | Started Cetus Manufacturing Module 51953 | -4/Cetus | Manufactured an Enhanced Grunt 51972 | -4/Cetus | Found a strange terminal 51978 | -4/Cetus | Manufactured an Enhanced Grunt 51986 | -4/Cetus | Discovered new exit (range 16) 52003 | -4/Cetus | Manufactured an Enhanced Grunt 52003 | -4/Cetus | Destroyed Cetus Guard 52005 | -4/Cetus | Destroyed Cetus Guard 52008 | -4/Cetus | Spotted Cetus Guard 52009 | -4/Cetus | Spotted Cetus Guard 52018 | -4/Cetus | Destroyed Cetus Guard 52019 | -4/Cetus | Destroyed Cetus Guard 52028 | -4/Cetus | Manufactured an Enhanced Grunt 52030 | -4/Cetus | Discovered exit to Research (range 16) 52036 | -4/Cetus | Met Revision 17 52053 | -4/Cetus | Manufactured an Enhanced Grunt 52060 | -4/Cetus | Identified exit to Archives 52078 | -4/Cetus | Entered Archives 52078 | -4/Archives | Accompanied by 8 allies 52079 | -4/Archives | Loaded intel: 8 machine locations 52128 | -4/Archives | Discovered exit to Research (range 15) 52140 | -4/Archives | Discovered new exit (range 15) 52154 | -4/Archives | Identified exit to Hub_04(d) 52171 | -4/Archives | Discovered exit to Hub_04(d) (range 13) 53278 | -4/Archives | Entered Hub_04(d) 53278 | -4/Hub_04(d) | Accompanied by 7 allies 53279 | -4/Hub_04(d) | Loaded intel: 94 machine locations 53377 | -4/Hub_04(d) | Discovered exit to Research (range 4) 53480 | -4/Hub_04(d) | Discovered exit to Research (range 15) 53540 | -4/Hub_04(d) | Intercept squad dispatched 53571 | -4/Hub_04(d) | Discovered exit to Research (range 12) 53671 | -4/Hub_04(d) | Discovered exit to Research (range 16) 53805 | -4/Hub_04(d) | Network Hub disabled 53843 | -4/Hub_04(d) | Network Hub disabled 53844 | -4/Hub_04(d) | Intercept squad dispatched 53852 | -4/Hub_04(d) | Spotted Tracker 53864 | -4/Hub_04(d) | Destroyed Tracker 53876 | -4/Hub_04(d) | Spotted Lightning 53879 | -4/Hub_04(d) | Destroyed Tracker 53880 | -4/Hub_04(d) | Spotted Combat Programmer 53893 | -4/Hub_04(d) | Spotted Combat Programmer 53908 | -4/Hub_04(d) | Destroyed Lightning 53925 | -4/Hub_04(d) | Destroyed Lightning 53926 | -4/Hub_04(d) | Spotted Lightning 53963 | -4/Hub_04(d) | Destroyed Lightning 54005 | -4/Hub_04(d) | Destroyed 16 combat bots 54021 | -4/Hub_04(d) | Destroyed Combat Programmer 54041 | -4/Hub_04(d) | Destroyed Combat Programmer 54115 | -4/Hub_04(d) | Network Hub disabled 54117 | -4/Hub_04(d) | Spotted Lightning 54117 | -4/Hub_04(d) | Spotted Lightning 54117 | -4/Hub_04(d) | Spotted Lightning 54152 | -4/Hub_04(d) | Network Hub disabled 54155 | -4/Hub_04(d) | Spotted Lightning 54155 | -4/Hub_04(d) | Entered Research 54155 | -3/Research | Evolved 2 slots: Propulsion x1, Utility x1 54159 | -3/Research | Loaded intel: 85 machine locations 54256 | -3/Research | Spotted B-86 Titan 54271 | -3/Research | Destroyed B-86 Titan 54305 | -3/Research | Found Quantum Capacitor 54621 | -3/Research | Intercept squad dispatched 54630 | -3/Research | Spotted Tracker 54630 | -3/Research | Spotted Tracker 54632 | -3/Research | Destroyed Tracker 54636 | -3/Research | Destroyed Tracker 54655 | -3/Research | First assault squad dispatched 54673 | -3/Research | Spotted Combat Programmer 54674 | -3/Research | Spotted Combat Programmer 54706 | -3/Research | Destroyed Combat Programmer 54722 | -3/Research | Destroyed Combat Programmer 54777 | -3/Research | Found EMDS 54787 | -3/Research | Lost 3 parts (2u1w) 54802 | -3/Research | Found EMDS 54807 | -3/Research | Intercept squad dispatched 54807 | -3/Research | Destroyed 11 combat bots 54807 | -3/Research | Found Exp. Focal Shield 54817 | -3/Research | Spotted Tracker 54818 | -3/Research | Spotted Tracker 54818 | -3/Research | Spotted Tracker 54829 | -3/Research | Destroyed Tracker 54833 | -3/Research | Destroyed Tracker 54839 | -3/Research | Destroyed Tracker 54860 | -3/Research | Lost 4 parts (1p3n) 54864 | -3/Research | Spotted Combat Programmer 54869 | -3/Research | Spotted Combat Programmer 54870 | -3/Research | Spotted Combat Programmer 54907 | -3/Research | Destroyed Combat Programmer 54918 | -3/Research | Destroyed Combat Programmer 54945 | -3/Research | Destroyed Combat Programmer 55000 | -3/Research | DAS Turret deployed 55035 | -3/Research | High security lockdown imminent 55056 | -3/Research | Destroyed 8 combat bots 55115 | -3/Research | High security lockdown engaged 55230 | -3/Research | Destroyed 7 combat bots 55232 | -3/Research | Discovered new exit (range 4) 55235 | -3/Research | Identified exit to Research 55235 | -3/Research | Entered another Research area 55235 | -2/Research | Evolved 2 slots: Utility x2 55237 | -2/Research | Loaded intel: 95 machine locations 55433 | -2/Research | Fabricated Assault Drone Bay (x1) 55540 | -2/Research | Local fabrication network quarantined 55547 | -2/Research | Destroyed 8 combat bots 55568 | -2/Research | Intercept squad dispatched 55583 | -2/Research | Spotted Tracker 55583 | -2/Research | Spotted Tracker 55587 | -2/Research | Destroyed Tracker 55594 | -2/Research | Allies destroyed Tracker 55625 | -2/Research | Spotted Combat Programmer 55626 | -2/Research | Destroyed Combat Programmer 55646 | -2/Research | Spotted Combat Programmer 55658 | -2/Research | Destroyed Combat Programmer 55679 | -2/Research | Lost 3 parts (1n1u1w) 55755 | -2/Research | High security lockdown imminent 55805 | -2/Research | Destroyed 9 combat bots 55835 | -2/Research | High security lockdown engaged 55864 | -2/Research | Discovered new exit (range 6) 55865 | -2/Research | Identified exit to Quarantine 55865 | -2/Research | Entered Quarantine 55866 | -2/Quarantine | Loaded intel: 108 machine locations 56020 | -2/Quarantine | Found Matter Drive 56106 | -2/Quarantine | Met incapacitated Sigix Warrior 56106 | -2/Quarantine | Lockdown squad dispatched 56106 | -2/Quarantine | Acquired the access code to the Sigix quarantine chamber 56107 | -2/Quarantine | Unlocked Sigix quarantine chamber 56115 | -2/Quarantine | First assault squad dispatched 56127 | -2/Quarantine | Spotted Lightning 56161 | -2/Quarantine | Intercept squad dispatched 56165 | -2/Quarantine | Spotted Tracker 56165 | -2/Quarantine | Spotted Tracker 56177 | -2/Quarantine | Destroyed Tracker 56181 | -2/Quarantine | Spotted Combat Programmer 56182 | -2/Quarantine | Spotted Combat Programmer 56185 | -2/Quarantine | Destroyed Combat Programmer 56185 | -2/Quarantine | System corruption reached 10% 56255 | -2/Quarantine | Lost 10 parts (1p3n5u1w) 56266 | -2/Quarantine | Found Exp. Targeting Computer 56377 | -2/Quarantine | Found Sigix Broadsword 56462 | -2/Quarantine | Spotted Fortress 56504 | -2/Quarantine | Intercept squad dispatched 56525 | -2/Quarantine | Destroyed Tracker 56527 | -2/Quarantine | Destroyed Tracker 56570 | -2/Quarantine | System corruption reached 30% 56584 | -2/Quarantine | Core integrity fell below 50% 56587 | -2/Quarantine | Discovered new exit (range 5) 56594 | -2/Quarantine | Entered Section 7 56595 | -2/Section 7 | Loaded intel: 151 machine locations 56623 | -2/Section 7 | Lost 18 parts (2p3n10u3w) 56668 | -2/Section 7 | Core integrity fell below 20% 56686 | -2/Section 7 | Destroyed by H-88 Terminator with Heavy Machine Gun Last Messages --------------- 56663_ W-44 Eye sends out distress signal. 56663_ Acquired Imp. Antigrav System. 56666_ ALERT: Hostiles spotted, dispatching reinforcements to Terminal 7019. 56667_ System corrupted: Energy discharge (-32). 56675_ W-44 Eye sends out distress signal. 56675_ Slammed into W-44 Eye. 56680_ ALERT: Hostiles spotted, dispatching reinforcements to Terminal 7020. 56682_ Slug penetrates Wall. 56683_ Imp. Antigrav System destroyed. 56684_ System corrupted: Component data lost. 56685_ Triggered Alarm Trap. 56685_ An alarm sounds. 56685_ ALERT: Alarm triggered, dispatching investigation squad. 56685_ Slug penetrates P-80 Master. 56685_ Penetrated by Slug. 56685_ Slammed into H-88 Terminator. 56686_ Terminal disabled. 56686_ Penetrated by Slug. Map ----- +----------------------------------------------------+ | ?????????????????????????????????????????????????? | | ????????????????"""?"""?"""??????????????????????? | | ????????????????"?"?"?"?"?"??????????????????????? | | ????????????????"""?"""?"""?????T"???????????????? | | ????????????????????????????????""???????????????? | | ?????????????????????????????????????????????????? | | ?????????????????????????????????????????????????? | | ?????????????????????????????????????????????????? | | ???????????"""???????????????????????????????????? | | ##?????????"R????????????????????????????????????? | | ?######?"""???????????????????????????????????? | | ?# #???????????????????????????????????????? | | * # #????????????""?????????????????????????? | | # #????????????""?????????????????????????? | | !! + #????????????"T?????????????????????????? | | !! # #????????????""????????"""""""??????????? | | # #????????????""????????"""""""??????????? | | ?# #??????????????????????"""""""??????????? | | ?# #???????????????????????????????????????? | | ##??# #??????###########+###??????????????????? | | ????# #??????# !!= = #??????????????????? | | ????# #???????#Y!!= """ #??????????????????? | | ????# #?????????!!= ""T"" #???""""""?????????? | | ##### #??????????? " "" ???""""""""????????? | | # #????????????? h h ??????""""""?????????? | | # ###???????????##@#####??????????????????? | | # T"#???????????# #???""""""?????????? | | # ""#???????????# #??""""""""????????? | | + ###???????????# pp"""#???""""""?????????? | | "" # #?????????????# """#??????????????????? | | !" # #?????????????# """#??????????????????? | | "" # #?????????????# w #??????????????????? | | # #?????????????######+#??????????????????? | | ##### #??????????????????# #??????????????????? | | """ # #??????????????????# #??????####????????? | | T"" + #??????????????????# #???? #????????? | | # #??????????????????# #?"" ""???????? | | # #??????????????????# #""" ""?????""" | | # #??????????????????# #"T ?""????"""" | | # # ????? ?????????# #""" """??T?????""" | | # # ??? ??????????# #?"" """?""???????? | | # # ??? ????#### #? """ ""?????""" | | ] # # """ """ ????# # """ ""????"""" | | ##### #! """ """ ????# # """ ???????""" | | ????# # """ """ ???# + """ ?????????? | | ????# # """ """ ????# # ! """ ????"T"??? | | ????# # """ """?????# # #???"""??? | | ????# #?? ????????# #? #????????? | | """?# #####+########### #? #????????? | | """?# #??########????????? | +----------------------------------------------------+ Best States ------------- Heat Dissipation 107 Energy Generation 45 Energy Capacity 1330 Matter Stores 485 Matter Capacity 500 Sight Range 18 Robot Scan Range 22 Terrain Scan Range 20 Terrain Scan Density 210 Armor Coverage 2400 Resistance: KI 30 Resistance: EM 90 Propulsion Shielding 66 Weapon Shielding 90 Evasion (%) 61 Targeting Accuracy 24 Recoil Reduction 3 Particle Charging 20 Offensive Hacking 24 Defensive Hacking 12 Item Schematics ----------------- Combat Drone Bay | -7/Data Miner | Free Lgt. Regenerative Plating | -7/Data Miner | Free Cmb. Gravmag System | -7/Data Miner | Free Exp. Cesium-ion Thruster | -7/Data Miner | Free Exp. Terrain Scanner | -7/Data Miner | Free Exp. Targeting Computer | -7/Data Miner | Free Tactical Coordination Suite | -7/Data Miner | Free Assault Drone Bay | -5/Zhirov | Free Exp. Heat Sink | -5/Zhirov | Free Exp. Optical Array | -5/Zhirov | Free Imp. Arc Thrower | -5/Zhirov | Free Robot Schematics ------------------ S-27 Virus | -7/Data Miner | Free G-50 Soldier | -7/Data Miner | Free L-41 Fighter | -7/Data Miner | Free X-72 Disruptor | -7/Data Miner | Free H-66 Slayer | -7/Data Miner | Free P-70 Sage | -7/Data Miner | Free I-36 Angel | -7/Data Miner | Free I-47 Archangel | -7/Data Miner | Free Fabricated ------------ H-66 Slayer | x2 | -5/Factory Assault Drone Bay | x1 | -4/Factory Assault Drone Bay | x1 | -2/Research Alien Tech Used ----------------- Core Expander Integrated Dissipator Sigix Broadsword Matter Drive Achievements -------------- None Challenges ------------ None Game ------ Seed DisposableColdFemtoactuators Manual? 0 Play Time 09:24:15 Cumulative 980.5 hours Start 2019.11.24 @ 13:05:47 End 2019.11.26 @ 20:37:27 Sessions 9 Manual Loads 0 Difficulty Rogue Special Mode None Game No. 370 Rogue 370 Adventurer 0 Explorer 0 Win Type - Total 245 Types 213/4/11/3/3/2/9 Lore% 97 Gallery% 99 Achievement% 91 Wizard Run 0 Options --------- ASCII 0 Keyboard 0 Movement Numpad Keybinds 0 Fullscreen 1 Font 18/Terminus Map View 76x50 Tactical HUD 1 Map Filters NONE Filters NONE Steam 1 RUN: 013a69fd-3db1-4b28-a5b9-0c23c8c34ce2